{"text_format":"1","workbook":"xlsx","n_sheets":6,"sheets":["ALK","Faktury","Opakowania","CDE_Obrót","FGH_Wyprzedaż","A"],"not_rendered":{"charts":0,"images":7,"macros":1,"external_links":3,"defined_names":13,"comments":0,"pivot_tables":0},"unopened":[],"bounds":{"document_bytes":16777216,"sheet_cells":100000,"rows_first":2000,"rows_last":500,"rows_between":2000,"halvings":0,"cell_chars":16384,"cell_head_chars":4096},"cells_cut":0,"cells_raw":0,"read":"whole","date_system":"1900"}

{"sheet":"ALK","index":0,"n_rows":400,"n_cols":34,"rows_kept":400,"cut":false,"hidden":false,"merged":[[155,2,155,23],[151,2,151,23],[152,2,152,23],[153,3,153,23],[139,3,139,18],[145,2,145,3],[145,5,145,23],[154,3,154,23],[148,2,148,23],[141,2,141,23],[124,2,124,23],[58,3,58,9],[80,3,80,9],[91,2,91,23],[87,3,87,18],[87,19,87,23],[81,3,81,18],[108,2,108,23],[109,2,109,23],[90,3,90,18],[90,19,90,23],[86,3,86,18],[86,19,86,23],[79,3,79,23],[81,19,81,23],[58,14,58,23],[103,3,103,18],[105,3,105,18],[103,19,103,23],[104,3,104,18],[104,19,104,23],[106,3,106,18],[85,19,85,23],[67,19,67,23],[136,3,136,18],[130,3,130,18],[122,3,122,18],[123,3,123,18],[128,10,128,12],[134,3,134,18],[125,2,125,23],[131,19,131,23],[95,10,95,12],[95,14,95,23],[111,10,111,12],[121,19,121,23],[119,19,119,23],[120,19,120,23],[120,3,120,18],[119,3,119,18],[111,14,111,23],[111,3,111,9],[133,3,133,18],[132,3,132,18],[132,19,132,23],[107,2,107,23],[113,19,113,23],[96,19,96,23],[138,3,138,18],[135,3,135,18],[135,19,135,23],[136,19,136,23],[130,19,130,23],[114,19,114,23],[127,3,127,23],[129,3,129,18],[129,19,129,23],[128,14,128,23],[128,3,128,9],[121,3,121,18],[117,3,117,18],[117,19,118,23],[116,3,116,18],[118,3,118,18],[115,3,115,18],[115,19,115,23],[114,3,114,18],[137,19,137,23],[137,3,137,18],[131,3,131,18],[116,19,116,23],[133,19,133,23],[0,0,0,25],[70,19,70,22],[25,3,25,5],[26,2,26,23],[30,5,30,13],[76,2,76,23],[46,19,46,23],[58,10,58,12],[64,3,64,18],[65,3,65,18],[65,19,65,23],[40,2,40,23],[51,19,51,23],[43,10,43,12],[43,3,43,9],[43,14,43,23],[30,3,30,4],[36,13,36,23],[31,3,31,23],[36,3,36,12],[37,3,37,23],[71,1,71,24],[69,2,69,23],[59,3,59,18],[122,19,123,23],[50,19,50,23],[48,3,48,18],[49,3,49,18],[50,3,50,18],[51,3,51,18],[96,3,96,18],[72,1,72,24],[54,2,54,23],[113,3,113,18],[80,10,80,12],[80,14,80,23],[100,19,100,23],[102,3,102,18],[102,19,102,23],[101,3,101,18],[110,3,110,23],[100,3,100,18],[112,3,112,18],[112,19,112,23],[105,19,106,23],[30,15,30,23],[126,2,126,23],[82,3,82,18],[92,2,92,23],[93,2,93,23],[82,19,82,23],[85,3,85,18],[70,2,70,18],[88,19,88,23],[89,3,89,18],[88,3,88,18],[94,3,94,23],[95,3,95,9],[99,3,99,18],[99,19,99,23],[62,3,62,18],[62,19,62,23],[83,3,83,18],[83,19,83,23],[44,3,44,18],[45,3,45,18],[48,19,48,23],[49,19,49,23],[67,3,67,18],[23,3,23,23],[21,2,21,23],[24,3,24,23],[29,3,29,23],[16,5,16,23],[20,2,20,23],[19,2,19,4],[18,5,18,23],[27,2,27,23],[28,13,28,23],[28,3,28,12],[13,2,13,23],[14,2,14,4],[16,2,16,4],[19,5,19,23],[17,2,17,4],[17,5,17,23],[52,19,52,23],[41,2,41,23],[42,3,42,23],[52,3,52,18],[44,19,44,23],[45,19,45,23],[46,3,46,18],[34,18,34,23],[25,6,25,13],[25,14,25,23],[47,3,47,18],[47,19,47,23],[15,5,15,23],[15,2,15,4],[14,5,14,23],[18,2,18,4],[35,3,35,12],[35,13,35,23],[11,13,11,16],[12,13,12,16],[11,17,12,23],[11,10,11,12],[12,10,12,12],[38,3,38,23],[1,1,1,24],[3,2,3,23],[4,2,4,23],[5,2,5,23],[2,2,2,23],[9,2,9,23],[10,2,10,23],[11,2,12,9],[22,3,22,23],[6,12,7,23],[6,2,6,11],[7,2,7,11],[8,2,8,7],[8,8,8,23],[32,3,32,23],[33,3,33,23],[34,3,34,12],[34,13,34,17],[157,3,157,23],[39,2,39,23],[53,19,53,23],[53,3,53,18],[77,2,77,23],[78,2,78,23],[73,2,73,23],[74,2,74,23],[75,2,75,23],[66,19,66,23],[150,2,150,23],[68,19,68,23],[63,19,63,23],[59,19,59,23],[63,3,63,18],[64,19,64,23],[57,3,57,23],[84,3,84,18],[84,19,84,23],[98,3,98,18],[98,19,98,23],[89,19,89,23],[97,3,97,18],[97,19,97,23],[187,19,187,22],[134,19,134,23],[140,2,140,23],[168,2,168,23],[144,2,144,23],[160,13,160,23],[156,2,156,23],[142,3,142,18],[143,3,143,18],[149,2,149,23],[167,2,167,23],[163,3,163,23],[180,2,180,23],[175,2,175,23],[176,2,176,23],[173,2,173,23],[146,1,146,24],[147,1,147,24],[142,19,142,23],[143,19,143,23],[172,2,172,23],[170,2,170,23],[159,13,159,23],[164,3,164,23],[196,1,196,24],[177,2,177,23],[178,2,178,23],[187,2,187,18],[179,2,179,23],[55,2,55,23],[66,3,66,18],[101,19,101,23],[138,19,139,23],[171,2,171,23],[169,2,169,23],[161,2,161,23],[162,2,162,23],[165,2,165,23],[166,2,166,23],[60,3,60,18],[60,19,60,23],[158,3,158,23],[159,3,159,12],[160,3,160,12],[56,2,56,23],[61,3,61,18],[61,19,61,23],[68,3,68,18]]}
[null,null,null,null,null,null,null,null,null,null,null,null,null,null,null,null,null,null,null,null,null,null,null,null,null,null,1,"URZĄD SKARBOWY W ALEKSANDROWIE KUJAWSKIM","0402",null,1,"LpDokument",1,"LpOpakowania"]
[null,null,null,null,null,null,null,null,null,null,null,null,null,null,null,null,null,null,null,null,null,null,null,null,null,null,1,"URZĄD SKARBOWY W AUGUSTOWIE","2002",null,2,"NrDokument",2,"IloscNominalna"]
[null,null,null,null,null,null,null,null,null,null,null,null,null,null,null,null,null,null,null,null,null,null,null,null,null,null,1,"URZĄD SKARBOWY W BARTOSZYCACH","2802",null,3,"DataDokument",3,"ZawartoscAlk"]
[null,null,"  POLA JASNE WYPEŁNIA PODATNIK, WYPEŁNIĆ KOMPUTEROWO DUŻYMI LITERAMI",null,null,null,null,null,null,null,null,null,null,null,null,null,null,null,null,null,null,null,null,null,null,null,1,"URZĄD SKARBOWY W BEŁCHATOWIE","1002",null,4,"NIPNabywcy",4,"LiczbaOpakowan"]
[null,null,"                 Składanie ALK wyłącznie w wersji elektronicznej",null,null,null,null,null,null,null,null,null,null,null,null,null,null,null,null,null,null,null,null,null,null,null,1,"URZĄD SKARBOWY W BĘDZINIE","2402",null,5,"NIPDostawcy",5,"LiczbaLitrow"]
[null,null,null,null,null,null,null,null,null,null,null,null,null,null,null,null,null,null,null,null,null,null,null,null,null,null,1,"URZĄD SKARBOWY W BIAŁEJ PODLASKIEJ","0602"]
[null,null," 1. Numer Identyfikacji Podatkowej",null,null,null,null,null,null,null,null,null,null,null,null,null,null,null,null,null,null,null,null,null,null,null,1,"URZĄD SKARBOWY W BIAŁOBRZEGACH","1402"]
[null,null,2222222222,null,null,null,null,null,null,null,null,null,null,null,null,null,null,null,null,null,null,null,null,null,null,null,1,"URZĄD SKARBOWY W BIAŁOGARDZIE","3202"]
[null,null,"  ALK-1",null,null,null,null,null,"Wersja demonstracyjna",null,null,null,null,null,null,null,null,null,null,null,null,null,null,null,null,null,null,"PIERWSZY URZĄD SKARBOWY W BIAŁYMSTOKU","2003"]
[null,null,"INFORMACJA W SPRAWIE OPŁATY ZA ZEZWOLENIE NA OBRÓT HURTOWY NAPOJAMI ALKOHOLOWYMI W OPAKOWANIACH DO 300 ML ",null,null,null,null,null,null,null,null,null,null,null,null,null,null,null,null,null,null,null,null,null,null,null,null,"DRUGI URZĄD SKARBOWY W BIAŁYMSTOKU","2004"]
[null,null,"za okres",null,null,null,null,null,null,null,null,null,null,null,null,null,null,null,null,null,null,null,null,null,null,null,null,"URZĄD SKARBOWY W BIELSKU PODLASKIM","2005"]
[null,null,null,null,null,null,null,null,null,null," 2. Półrocze",null,null," 3. Rok",null,null,null,null,null,null,null,null,null,null,null,null,null,"PIERWSZY URZĄD SKARBOWY W BIELSKU-BIAŁEJ","2403"]
[null,null,null,null,null,null,null,null,null,null,2,null,null,2023,null,null,null,null,null,null,null,null,null,null,null,null,null,"DRUGI URZĄD SKARBOWY W BIELSKU-BIAŁEJ","2404"]
[null,null,null,null,null,null,null,null,null,null,null,null,null,null,null,null,null,null,null,null,null,null,null,null,null,null,null,"DRUGI ŚLĄSKI URZĄD SKARBOWY W BIELSKU-BIAŁEJ","2472"]
[null,null," Podstawa prawna:",null,null,"Art. 92 ust. 17 ustawy z dnia 26 października 1982 r. o wychowaniu w trzeźwości i przeciwdziałaniu alkoholizmowi",null,null,null,null,null,null,null,null,null,null,null,null,null,null,null,null,null,null,null,null,null,"URZĄD SKARBOWY W BIŁGORAJU","0603"]
[null,null,null,null,null,"(Dz. U. z 2023 r. poz. 165, z późn. zm.), zwanej dalej „ustawą”.",null,null,null,null,null,null,null,null,null,null,null,null,null,null,null,null,null,null,null,null,null,"URZĄD SKARBOWY W BOCHNI","1202"]
[null,null," Składający:",null,null,"Podmiot obowiązany do zapłaty opłaty, o którym mowa w art. 92 ust. 17 ustawy.",null,null,null,null,null,null,null,null,null,null,null,null,null,null,null,null,null,null,null,null,null,"URZĄD SKARBOWY W BOLESŁAWCU","0202"]
[null,null," Terminy składania:",null,null,"Do końca miesiąca następującego po zakończeniu półrocza.",null,null,null,null,null,null,null,null,null,null,null,null,null,null,null,null,null,null,null,null,null,"URZĄD SKARBOWY W BRANIEWIE","2803"]
[null,null," Otrzymuje:",null,null,"Naczelnik urzędu skarbowego właściwy ze względu na miejsce zamieszkania albo adres siedziby przedsiębiorcy",null,null,null,null,null,null,null,null,null,null,null,null,null,null,null,null,null,null,null,null,null,"URZĄD SKARBOWY W BRODNICY","0403"]
[null,null,null,null,null,"posiadającego zezwolenie, o którym mowa w art. 9 ust. 1 lub 2 ustawy.",null,null,null,null,null,null,null,null,null,null,null,null,null,null,null,null,null,null,null,null,null,"URZĄD SKARBOWY W BRZEGU","1602"]
[null,null,null,null,null,null,null,null,null,null,null,null,null,null,null,null,null,null,null,null,null,null,null,null,null,null,null,"URZĄD SKARBOWY W BRZESKU","1203"]
[null,null," A. MIEJSCE I CEL SKŁADANIA",null,null,null,null,null,null,null,null,null,null,null,null,null,null,null,null,null,null,null,null,null,null,null,null,"URZĄD SKARBOWY W BRZEZINACH","1003"]
[null,null,null," 4. Miejsce składania informacji ALK",null,null,null,null,null,null,null,null,null,null,null,null,null,null,null,null,null,null,null,null,null,null,null,"URZĄD SKARBOWY W BRZOZOWIE","1802"]
[null,null,null,"URZĄD SKARBOWY W BIAŁOBRZEGACH",null,null,null,null,null,null,null,null,null,null,null,null,null,null,null,null,null,null,null,null,null,null,{"$f":"VLOOKUP(D24,US,2,FALSE)","v":"1402"},"URZĄD SKARBOWY W BUSKU-ZDROJU","2602"]
[null,null,null," 5. Cel złożenia formularza (zaznaczyć właściwy kwadrat):",null,null,null,null,null,null,null,null,null,null,null,null,null,null,null,null,null,null,null,null,null,null,null,"PIERWSZY URZĄD SKARBOWY W BYDGOSZCZY","0404"]
[null,null,null,null,null,null,"1. złożenie po raz pierwszy deklaracji za dany okres",null,null,null,null,null,null,null,"2. korekta deklaracji za dany okres",null,null,null,null,null,null,null,null,null,null,null,null,"DRUGI URZĄD SKARBOWY W BYDGOSZCZY","0405"]
[null,null,null,null,null,null,null,null,null,null,null,null,null,null,null,null,null,null,null,null,null,null,null,null,null,null,null,"TRZECI URZĄD SKARBOWY W BYDGOSZCZY","0406"]
[null,null," B. DANE IDENTYFIKACYJNE PODATNIKA",null,null,null,null,null,null,null,null,null,null,null,null,null,null,null,null,null,null,null,null,null,null,null,null,"KUJAWSKO-POMORSKI URZĄD SKARBOWY W BYDGOSZCZY","0471"]
[null,null,null," * - dotyczy podmiotów niebędących osobami fizycznymi",null,null,null,null,null,null,null,null,null," ** - dotyczy podmiotów będących osobami fizycznymi",null,null,null,null,null,null,null,null,null,null,null,null,null,"URZĄD SKARBOWY W BYSTRZYCY KŁODZKIEJ","0203"]
[null,null,null," 6. Rodzaj podatnika (zaznaczyć właściwy kwadrat):",null,null,null,null,null,null,null,null,null,null,null,null,null,null,null,null,null,null,null,null,null,null,null,"URZĄD SKARBOWY W BYTOMIU","2405"]
[null,null,null,null,null," 1. podatnik niebędący osobą fizyczną",null,null,null,null,null,null,null,null,null," 2. osoba fizyczna",null,null,null,null,null,null,null,null,null,null,null,"URZĄD SKARBOWY W BYTOWIE","2202"]
[null,null,null," 7. Nazwa pełna * / Nazwisko, pierwsze imię, data urodzenia **",null,null,null,null,null,null,null,null,null,null,null,null,null,null,null,null,null,null,null,null,null,null,null,"URZĄD SKARBOWY W CHEŁMIE","0604"]
[null,null,null,"SAAD",null,null,null,null,null,null,null,null,null,null,null,null,null,null,null,null,null,null,null,null,null,null,null,"URZĄD SKARBOWY W CHEŁMNIE","0407"]
[null,null,null," 7. Nazwa pełna * / Nazwisko, pierwsze imię, data urodzenia **",null,null,null,null,null,null,null,null,null,null,null,null,null,null,null,null,null,null,null,null,null,null,null,"URZĄD SKARBOWY W CHODZIEŻY","3037"]
[null,null,null,null,null,null,null,null,null,null,null,null,null,null,null,null,null,null,null,null,null,null,null,null,null,null,null,"URZĄD SKARBOWY W CHOJNICACH","2203"]
[null,null,null," 7a. Adres e-mail",null,null,null,null,null,null,null,null,null," 7b. Telefon kontaktowy",null,null,null,null,null,null,null,null,null,null,null,null,null,"URZĄD SKARBOWY W CHORZOWIE","2406"]
[null,null,null,"saad@saad.pl",null,null,null,null,null,null,null,null,null,null,null,null,null,null,null,null,null,null,null,null,null,null,null,"URZĄD SKARBOWY W CHOSZCZNIE","3203"]
[null,null,null," 7c. Nazwa systemu, z którego pochodzą dane",null,null,null,null,null,null,null,null,null,null,null,null,null,null,null,null,null,null,null,null,null,null,null,"URZĄD SKARBOWY W CHRZANOWIE","1204"]
[null,null,null,null,null,null,null,null,null,null,null,null,null,null,null,null,null,null,null,null,null,null,null,null,null,null,null,"URZĄD SKARBOWY W CIECHANOWIE","1403"]
[null,null,null,null,null,null,null,null,null,null,null,null,null,null,null,null,null,null,null,null,null,null,null,null,null,null,null,"URZĄD SKARBOWY W CIESZYNIE","2407"]
[null,null," C. INFORMACJA DOTYCZĄCA OBROTU NAPOJÓW ALKOHOLOWYCH DO 4,5%",null,null,null,null,null,null,null,null,null,null,null,null,null,null,null,null,null,null,null,null,null,null,null,null,"URZĄD SKARBOWY W CZARNKOWIE","3002"]
[null,null,"      ZAWARTOŚCI ALKOHOLU",null,null,null,null,null,null,null,null,null,null,null,null,null,null,null,null,null,null,null,null,null,null,null,null,"URZĄD SKARBOWY W CZECHOWICACH-DZIEDZICACH","2408"]
[null,null,null," 8. Posiadam zezwolenie na obrót hurtowy napojami alkoholowymi do 4,5% zawartości alkoholu oraz piwem:",null,null,null,null,null,null,null,null,null,null,null,null,null,null,null,null,null,null,null,null,null,null,null,"PIERWSZY URZĄD SKARBOWY W CZĘSTOCHOWIE","2409"]
[null,null,null,null,null,null,null,null,null,null,"1. tak",null,null,"2. nie",null,null,null,null,null,null,null,null,null,null,null,null,null,"DRUGI URZĄD SKARBOWY W CZĘSTOCHOWIE","2410"]
[null,null,null," Łączna liczba litrów 100% alkoholu zawartego w napojach - dla napojów alkoholowych do 4,5% zawartości ",null,null,null,null,null,null,null,null,null,null,null,null,null,null,null," 9.",null,null,null,null,null,null,null,"URZĄD SKARBOWY W CZŁUCHOWIE","2204"]
[null,null,null," alkoholu oraz piwa",null,null,null,null,null,null,null,null,null,null,null,null,null,null,null,{"$f":"TRUNC(CDE_Obrót!D3)","v":11},null,null,null,null,null,null,null,"URZĄD SKARBOWY W DĄBROWIE GÓRNICZEJ","2411"]
[null,null,null," Liczba mililitrów 100% alkoholu zawartego w napojach dla napojów alkoholowych do 4,5% zawartości alkoholu",null,null,null,null,null,null,null,null,null,null,null,null,null,null,null," 9A.",null,null,null,null,null,null,null,"URZĄD SKARBOWY W DĄBROWIE TARNOWSKIEJ","1205"]
[null,null,null," oraz piwa (wypełnia się w przypadku wystąpienia niepełnych litrów)",null,null,null,null,null,null,null,null,null,null,null,null,null,null,null,{"$f":"(CDE_Obrót!D3-TRUNC(CDE_Obrót!D3))*1000","v":234},null,null,null,null,null,null,null,"URZĄD SKARBOWY W DĘBICY","1803"]
[null,null,null," Kwota opłaty ustalona na podstawie art. 92 ust. 11 i 12 ustawy - dla napojów alkoholowych do 4,5% zawartości",null,null,null,null,null,null,null,null,null,null,null,null,null,null,null," 10.",null,null,null,null,null,null,null,"URZĄD SKARBOWY W DRAWSKU POMORSKIM","3204"]
[null,null,null," alkoholu oraz piwa (po zaokrągleniu do pełnych zł)",null,null,null,null,null,null,null,null,null,null,null,null,null,null,null,{"$f":"CDE_Obrót!E3","v":2},null,null,null,null,null,null,null,"URZĄD SKARBOWY W DREZDENKU","0812"]
[null,null,null," Kwota pomniejszenia opłaty ustalona na podstawie art. 92 ust. 14 ustawy - dla napojów alkoholowych do 4,5% ",null,null,null,null,null,null,null,null,null,null,null,null,null,null,null," 11.",null,null,null,null,null,null,null,"URZĄD SKARBOWY W DZIAŁDOWIE","2804"]
[null,null,null," zawartości alkoholu oraz piwa ",null,null,null,null,null,null,null,null,null,null,null,null,null,null,null,{"$f":"CDE_Obrót!F3","v":1},null,null,null,null,null,null,null,"URZĄD SKARBOWY W DZIERŻONIOWIE","0204"]
[null,null,null," Kwota opłaty do zapłaty dla napojów alkoholowych do 4,5% zawartości alkoholu oraz piwa ",null,null,null,null,null,null,null,null,null,null,null,null,null,null,null," 12.",null,null,null,null,null,null,null,"URZĄD SKARBOWY W ELBLĄGU","2805"]
[null,null,null," Należy podać kwotę różnicy między wartością z poz. 10 a wartością z poz. 11.",null,null,null,null,null,null,null,null,null,null,null,null,null,null,null,{"$f":"IF(T50-T52<0,0,T50-T52)","v":1},null,null,null,null,null,null,null,"URZĄD SKARBOWY W EŁKU","2806"]
[null,null,null,null,null,null,null,null,null,null,null,null,null,null,null,null,null,null,null,null,null,null,null,null,null,null,null,"URZĄD SKARBOWY W GARWOLINIE","1404"]
[null,null," D. INFORMACJA DOTYCZĄCA OBROTU NAPOJÓW ALKOHOLOWYCH POWYŻEJ 4,5%",null,null,null,null,null,null,null,null,null,null,null,null,null,null,null,null,null,null,null,null,null,null,null,null,"PIERWSZY URZĄD SKARBOWY W GDAŃSKU","2205"]
[null,null,"      DO 18% ZAWARTOŚCI ALKOHOLU",null,null,null,null,null,null,null,null,null,null,null,null,null,null,null,null,null,null,null,null,null,null,null,null,"DRUGI URZĄD SKARBOWY W GDAŃSKU","2206"]
[null,null,null," 13. Posiadam zezwolenie na obrót hurtowy napojami alkoholowymi powyżej 4,5% do 18% zawartości alkoholu, z wyjątkiem piwa:",null,null,null,null,null,null,null,null,null,null,null,null,null,null,null,null,null,null,null,null,null,null,null,"TRZECI URZĄD SKARBOWY W GDAŃSKU","2207"]
[null,null,null,null,null,null,null,null,null,null,"1. tak",null,null,"2. nie",null,null,null,null,null,null,null,null,null,null,null,null,null,"POMORSKI URZĄD SKARBOWY W GDAŃSKU","2271"]
[null,null,null," Łączna liczba litrów 100% alkoholu zawartego w napojach - dla napojów alkoholowych powyżej 4,5% do 18% ",null,null,null,null,null,null,null,null,null,null,null,null,null,null,null," 14.",null,null,null,null,null,null,null,"PIERWSZY URZĄD SKARBOWY W GDYNI","2208"]
[null,null,null," zawartości alkoholu, z wyjątkiem piwa",null,null,null,null,null,null,null,null,null,null,null,null,null,null,null,{"$f":"TRUNC(CDE_Obrót!G3)","v":11},null,null,null,null,null,null,null,"DRUGI URZĄD SKARBOWY W GDYNI","2209"]
[null,null,null," Liczba mililitrów 100% alkoholu zawartego w napojach dla napojów alkoholowych powyżej 4,5% do 18% ",null,null,null,null,null,null,null,null,null,null,null,null,null,null,null," 14A.",null,null,null,null,null,null,null,"URZĄD SKARBOWY W GIŻYCKU","2807"]
[null,null,null," zawartości alkoholu, z wyjątkiem piwa (wypełnia się w przypadku wystąpienia niepełnych litrów)",null,null,null,null,null,null,null,null,null,null,null,null,null,null,null,{"$f":"(CDE_Obrót!G3-TRUNC(CDE_Obrót!G3))*1000","v":234},null,null,null,null,null,null,null,"PIERWSZY URZĄD SKARBOWY W GLIWICACH","2412"]
[null,null,null," Kwota opłaty ustalona na podstawie art. 92 ust. 11 i 12 ustawy - dla napojów alkoholowych powyżej 4,5% do 18% ",null,null,null,null,null,null,null,null,null,null,null,null,null,null,null," 15.",null,null,null,null,null,null,null,"DRUGI URZĄD SKARBOWY W GLIWICACH","2413"]
[null,null,null," zawartości alkoholu, z wyjątkiem piwa (po zaokrągleniu do pełnych zł) ",null,null,null,null,null,null,null,null,null,null,null,null,null,null,null,{"$f":"CDE_Obrót!H3","v":1},null,null,null,null,null,null,null,"URZĄD SKARBOWY W GŁOGOWIE","0205"]
[null,null,null," Kwota pomniejszenia opłaty ustalona na podstawie art. 92 ust. 14 ustawy - dla napojów alkoholowych ",null,null,null,null,null,null,null,null,null,null,null,null,null,null,null," 16.",null,null,null,null,null,null,null,"URZĄD SKARBOWY W GŁOWNIE","1004"]
[null,null,null," powyżej 4,5% do 18% zawartości alkoholu, z wyjątkiem piwa",null,null,null,null,null,null,null,null,null,null,null,null,null,null,null,{"$f":"CDE_Obrót!I3","v":1},null,null,null,null,null,null,null,"URZĄD SKARBOWY W GŁUBCZYCACH","1603"]
[null,null,null," Kwota opłaty do zapłaty dla napojów alkoholowych powyżej 4,5% do 18% zawartości alkoholu, z wyjątkiem piwa",null,null,null,null,null,null,null,null,null,null,null,null,null,null,null," 17.",null,null,null,null,null,null,null,"URZĄD SKARBOWY W GNIEŹNIE","3003"]
[null,null,null," Należy podać kwotę różnicy między wartością z poz. 15 a wartością z poz. 16.",null,null,null,null,null,null,null,null,null,null,null,null,null,null,null,{"$f":"IF(T65-T67<0,0,T65-T67)","v":0},null,null,null,null,null,null,null,"URZĄD SKARBOWY W GOLENIOWIE","3205"]
[null,null,null,null,null,null,null,null,null,null,null,null,null,null,null,null,null,null,null,null,null,null,null,null,null,null,null,"URZĄD SKARBOWY W GOLUBIU-DOBRZYNIU","0422"]
[null,null,null,null,null,null,null,null,null,null,null,null,null,null,null,null,null,null,null,"ALK-1(2)",null,null,null,"1/3",null,null,null,"URZĄD SKARBOWY W GORLICACH","1206"]
[null,null,null,null,null,null,null,null,null,null,null,null,null,null,null,null,null,null,null,null,null,null,null,null,null,null,null,"URZĄD SKARBOWY W GORZOWIE WIELKOPOLSKIM","0802"]
[null,null,null,null,null,null,null,null,null,null,null,null,null,null,null,null,null,null,null,null,null,null,null,null,null,null,null,"URZĄD SKARBOWY W GOSTYNINIE","1405"]
[null,null,null,null,null,null,null,null,null,null,null,null,null,null,null,null,null,null,null,null,null,null,null,null,null,null,null,"URZĄD SKARBOWY W GOSTYNIU","3004"]
[null,null,"  POLA JASNE WYPEŁNIA PODATNIK, WYPEŁNIĆ KOMPUTEROWO DUŻYMI LITERAMI",null,null,null,null,null,null,null,null,null,null,null,null,null,null,null,null,null,null,null,null,null,null,null,null,"URZĄD SKARBOWY W GÓRZE","0233"]
[null,null,"                 Składanie ALK wyłącznie w wersji elektronicznej",null,null,null,null,null,null,null,null,null,null,null,null,null,null,null,null,null,null,null,null,null,null,null,null,"URZĄD SKARBOWY W GRAJEWIE","2006"]
[null,null,null,null,null,null,null,null,null,null,null,null,null,null,null,null,null,null,null,null,null,null,null,null,null,null,null,"URZĄD SKARBOWY W GRODZISKU MAZOWIECKIM","1406"]
[null,null," E. INFORMACJA DOTYCZĄCA OBROTU NAPOJÓW ALKOHOLOWYCH POWYŻEJ 18% ",null,null,null,null,null,null,null,null,null,null,null,null,null,null,null,null,null,null,null,null,null,null,null,null,"URZĄD SKARBOWY W GRODZISKU WIELKOPOLSKIM","3005"]
[null,null,"      ZAWARTOŚCI ALKOHOLU",null,null,null,null,null,null,null,null,null,null,null,null,null,null,null,null,null,null,null,null,null,null,null,null,"URZĄD SKARBOWY W GRÓJCU","1407"]
[null,null,null," 18. Posiadam zezwolenie na obrót hurtowy napojami alkoholowymi powyżej 18% zawartości alkoholu:",null,null,null,null,null,null,null,null,null,null,null,null,null,null,null,null,null,null,null,null,null,null,null,"URZĄD SKARBOWY W GRUDZIĄDZU","0408"]
[null,null,null,null,null,null,null,null,null,null,"1. tak",null,null,"2. nie",null,null,null,null,null,null,null,null,null,null,null,null,null,"URZĄD SKARBOWY W GRYFICACH","3206"]
[null,null,null," Łączna liczba litrów 100% alkoholu zawartego w napojach - dla napojów alkoholowych powyżej 18%",null,null,null,null,null,null,null,null,null,null,null,null,null,null,null," 19.",null,null,null,null,null,null,null,"URZĄD SKARBOWY W GRYFINIE","3207"]
[null,null,null," zawartości alkoholu",null,null,null,null,null,null,null,null,null,null,null,null,null,null,null,{"$f":"TRUNC(CDE_Obrót!J3)","v":11},null,null,null,null,null,null,null,"URZĄD SKARBOWY W HAJNÓWCE","2015"]
[null,null,null," Liczba mililitrów 100% alkoholu zawartego w napojach dla napojów alkoholowych powyżej 18% zawartości ",null,null,null,null,null,null,null,null,null,null,null,null,null,null,null," 19A.",null,null,null,null,null,null,null,"URZĄD SKARBOWY W HRUBIESZOWIE","0605"]
[null,null,null," alkoholu (wypełnia się w przypadku wystąpienia niepełnych litrów)",null,null,null,null,null,null,null,null,null,null,null,null,null,null,null,{"$f":"(CDE_Obrót!J3-TRUNC(CDE_Obrót!J3))*1000","v":234},null,null,null,null,null,null,null,"URZĄD SKARBOWY W IŁAWIE","2808"]
[null,null,null," Kwota opłaty ustalona na podstawie art. 92 ust. 11 i 12 ustawy - dla napojów alkoholowych powyżej 18% ",null,null,null,null,null,null,null,null,null,null,null,null,null,null,null," 20.",null,null,null,null,null,null,null,"URZĄD SKARBOWY W INOWROCŁAWIU","0409"]
[null,null,null," zawartości alkoholu (po zaokrągleniu do pełnych zł)",null,null,null,null,null,null,null,null,null,null,null,null,null,null,null,{"$f":"CDE_Obrót!K3","v":1},null,null,null,null,null,null,null,"URZĄD SKARBOWY W JANOWIE LUBELSKIM","0606"]
[null,null,null," Kwota pomniejszenia opłaty ustalona na podstawie art. 92 ust. 14 ustawy - dla napojów alkoholowych ",null,null,null,null,null,null,null,null,null,null,null,null,null,null,null," 21.",null,null,null,null,null,null,null,"URZĄD SKARBOWY W JAROCINIE","3006"]
[null,null,null," powyżej 18% zawartości alkoholu ",null,null,null,null,null,null,null,null,null,null,null,null,null,null,null,{"$f":"CDE_Obrót!L3","v":1},null,null,null,null,null,null,null,"URZĄD SKARBOWY W JAROSŁAWIU","1804"]
[null,null,null," Kwota opłaty do zapłaty dla napojów alkoholowych powyżej 18% zawartości alkoholu",null,null,null,null,null,null,null,null,null,null,null,null,null,null,null," 22.",null,null,null,null,null,null,null,"URZĄD SKARBOWY W JASTRZĘBIU-ZDROJU","2414"]
[null,null,null," Należy podać kwotę różnicy między wartością z poz. 20 a wartością z poz. 21.",null,null,null,null,null,null,null,null,null,null,null,null,null,null,null,{"$f":"IF(T87-T89<0,0,T87-T89)","v":0},null,null,null,null,null,null,null,"URZĄD SKARBOWY W JAŚLE","1805"]
[null,null,null,null,null,null,null,null,null,null,null,null,null,null,null,null,null,null,null,null,null,null,null,null,null,null,null,"URZĄD SKARBOWY W JAWORZE","0206"]
[null,null," F. INFORMACJA DOTYCZĄCA WYPRZEDAŻY NAPOJÓW ALKOHOLOWYCH DO 4,5% ",null,null,null,null,null,null,null,null,null,null,null,null,null,null,null,null,null,null,null,null,null,null,null,null,"URZĄD SKARBOWY W JAWORZNIE","2415"]
[null,null,"     ZAWARTOŚCI ALKOHOLU",null,null,null,null,null,null,null,null,null,null,null,null,null,null,null,null,null,null,null,null,null,null,null,null,"URZĄD SKARBOWY W JELENIEJ GÓRZE","0207"]
[null,null,null," 23. Posiadam zezwolenie o którym mowa w art. 95 ust. 4 ustawy, na wyprzedaż napojów alkoholowych do 4,5% zawartości alkoholu oraz piwa:",null,null,null,null,null,null,null,null,null,null,null,null,null,null,null,null,null,null,null,null,null,null,null,"URZĄD SKARBOWY W JĘDRZEJOWIE","2603"]
[null,null,null,null,null,null,null,null,null,null,"1. tak",null,null,"2. nie",null,null,null,null,null,null,null,null,null,null,null,null,null,"URZĄD SKARBOWY W WEJHEROWIE","2220"]
[null,null,null," Łączna liczba litrów 100% alkoholu zawartego w napojach dla napojów alkoholowych do 4,5% zawartości ",null,null,null,null,null,null,null,null,null,null,null,null,null,null,null," 24. ",null,null,null,null,null,null,null,"PIERWSZY URZĄD SKARBOWY W KALISZU","3007"]
[null,null,null," alkoholu oraz piwa, objętych zezwoleniem o którym mowa w art. 95 ust. 4 ustawy",null,null,null,null,null,null,null,null,null,null,null,null,null,null,null,{"$f":"TRUNC(FGH_Wyprzedaż!D3)","v":11},null,null,null,null,null,null,null,"DRUGI URZĄD SKARBOWY W KALISZU","3008"]
[null,null,null," Liczba mililitrów 100% alkoholu zawartego w napojach dla napojów alkoholowych do 4,5% zawartości alkoholu oraz piwa,",null,null,null,null,null,null,null,null,null,null,null,null,null,null,null," 24A.",null,null,null,null,null,null,null,"DRUGI WIELKOPOLSKI URZĄD SKARBOWY W KALISZU","3072"]
[null,null,null," objętych zezwoleniem o którym mowa w art. 95 ust. 4 ustawy (wypełnia się w przypadku wystąpienia niepełnych litrów)",null,null,null,null,null,null,null,null,null,null,null,null,null,null,null,{"$f":"(FGH_Wyprzedaż!D3-TRUNC(FGH_Wyprzedaż!D3))*1000","v":234},null,null,null,null,null,null,null,"URZĄD SKARBOWY W KAMIENIU POMORSKIM","3208"]
[null,null,null," Kwota opłaty ustalona na podstawie art. 92 ust. 11 i 12 ustawy dla napojów alkoholowych do 4,5% zawartości ",null,null,null,null,null,null,null,null,null,null,null,null,null,null,null," 25. ",null,null,null,null,null,null,null,"URZĄD SKARBOWY W KAMIENNEJ GÓRZE","0208"]
[null,null,null," alkoholu oraz piwa, objętych zezwoleniem o którym mowa w art. 95 ust. 4  ustawy (po zaokrągleniu do pełnych zł)",null,null,null,null,null,null,null,null,null,null,null,null,null,null,null,{"$f":"FGH_Wyprzedaż!E3","v":5},null,null,null,null,null,null,null,"URZĄD SKARBOWY W KARTUZACH","2210"]
[null,null,null," Kwota pomniejszenia opłaty ustalona na podstawie art. 92 ust. 14 ustawy dla napojów alkoholowych do 4,5%",null,null,null,null,null,null,null,null,null,null,null,null,null,null,null," 26. ",null,null,null,null,null,null,null,"PIERWSZY URZĄD SKARBOWY W KATOWICACH","2416"]
[null,null,null," zawartości alkoholu oraz piwa, objętych zezwoleniem o którym mowa w art. 95 ust. 4 ustawy ",null,null,null,null,null,null,null,null,null,null,null,null,null,null,null,{"$f":"FGH_Wyprzedaż!F3","v":5.5},null,null,null,null,null,null,null,"DRUGI URZĄD SKARBOWY W KATOWICACH","2417"]
[null,null,null," Kwota opłaty do zapłaty dla napojów alkoholowych do 4,5% zawartości alkoholu oraz piwa, objętych zezwoleniem",null,null,null,null,null,null,null,null,null,null,null,null,null,null,null," 27. ",null,null,null,null,null,null,null,"URZĄD SKARBOWY W KAZIMIERZY WIELKIEJ","2614"]
[null,null,null," o którym mowa w art. 95 ust. 4 ustawy ",null,null,null,null,null,null,null,null,null,null,null,null,null,null,null,{"$f":"IF(T102-T104<0,0,T102-T104)","v":0},null,null,null,null,null,null,null,"URZĄD SKARBOWY W KĘDZIERZYNIE-KOŹLU","1604"]
[null,null,null," Należy podać kwotę różnicy między wartością z poz. 25 a wartością z poz. 26.",null,null,null,null,null,null,null,null,null,null,null,null,null,null,null,null,null,null,null,null,null,null,null,"URZĄD SKARBOWY W KĘPNIE","3009"]
[null,null,null,null,null,null,null,null,null,null,null,null,null,null,null,null,null,null,null,null,null,null,null,null,null,null,null,"URZĄD SKARBOWY W KĘTRZYNIE","2809"]
[null,null," G. INFORMACJA DOTYCZĄCA WYPRZEDAŻY NAPOJÓW ALKOHOLOWYCH POWYŻEJ 4,5%",null,null,null,null,null,null,null,null,null,null,null,null,null,null,null,null,null,null,null,null,null,null,null,null,"PIERWSZY URZĄD SKARBOWY W KIELCACH","2604"]
[null,null,"      DO 18% ZAWARTOŚCI ALKOHOLU",null,null,null,null,null,null,null,null,null,null,null,null,null,null,null,null,null,null,null,null,null,null,null,null,"DRUGI URZĄD SKARBOWY W KIELCACH","2605"]
[null,null,null," 28. Posiadam zezwolenie o którym mowa w art. 95 ust. 4 ustawy, na wyprzedaż napojów alkoholowych powyżej 4,5% do 18% zawartości ",null,null,null,null,null,null,null,null,null,null,null,null,null,null,null,null,null,null,null,null,null,null,null,"URZĄD SKARBOWY W KLUCZBORKU","1605"]
[null,null,null,"       alkoholu, z wyjątkiem piwa:",null,null,null,null,null,null,"1. tak",null,null,"2. nie",null,null,null,null,null,null,null,null,null,null,null,null,null,"URZĄD SKARBOWY W KŁOBUCKU","2418"]
[null,null,null," Łączna liczba litrów 100% alkoholu zawartego w napojach dla napojów alkoholowych powyżej 4,5% do 18%",null,null,null,null,null,null,null,null,null,null,null,null,null,null,null," 29. ",null,null,null,null,null,null,null,"URZĄD SKARBOWY W KŁODZKU","0209"]
[null,null,null," zawartości alkoholu, z wyjątkiem piwa, objętych zezwoleniem o którym mowa w  art. 95 ust. 4 ustawy",null,null,null,null,null,null,null,null,null,null,null,null,null,null,null,{"$f":"TRUNC(FGH_Wyprzedaż!G3)","v":11},null,null,null,null,null,null,null,"URZĄD SKARBOWY W KOLBUSZOWEJ","1806"]
[null,null,null," Liczba mililitrów 100% alkoholu zawartego w napojach dla napojów alkoholowych powyżej 4,5% do 18% zawartości alkoholu,",null,null,null,null,null,null,null,null,null,null,null,null,null,null,null," 29A.",null,null,null,null,null,null,null,"URZĄD SKARBOWY W KOLE","3010"]
[null,null,null," z wyjątkiem piwa, objętych zezwoleniem o którym mowa w art. 95 ust. 4 ustawy (wypełnia się w przypadku wystąpienia niepełnych litrów)",null,null,null,null,null,null,null,null,null,null,null,null,null,null,null,{"$f":"(FGH_Wyprzedaż!G3-TRUNC(FGH_Wyprzedaż!G3))*1000","v":234},null,null,null,null,null,null,null,"URZĄD SKARBOWY W KOLNIE","2007"]
[null,null,null," Kwota opłaty ustalona na podstawie art. 92 ust. 11 i 12 ustawy dla napojów alkoholowych powyżej 4,5% do 18%",null,null,null,null,null,null,null,null,null,null,null,null,null,null,null," 30. ",null,null,null,null,null,null,null,"URZĄD SKARBOWY W KOŁOBRZEGU","3209"]
[null,null,null," zawartości alkoholu, z wyjątkiem piwa, objętych zezwoleniem o którym  mowa w art. 95 ust. 4 ustawy",null,null,null,null,null,null,null,null,null,null,null,null,null,null,null,{"$f":"FGH_Wyprzedaż!H3","v":1},null,null,null,null,null,null,null,"URZĄD SKARBOWY W KONINIE","3011"]
[null,null,null," (po zaokrągleniu do pełnych zł)",null,null,null,null,null,null,null,null,null,null,null,null,null,null,null,null,null,null,null,null,null,null,null,"URZĄD SKARBOWY W KOŃSKICH","2606"]
[null,null,null," Kwota pomniejszenia opłaty ustalona na podstawie art. 92 ust. 14 ustawy dla napojów alkoholowych powyżej 4,5%",null,null,null,null,null,null,null,null,null,null,null,null,null,null,null," 31. ",null,null,null,null,null,null,null,"PIERWSZY URZĄD SKARBOWY W KOSZALINIE","3210"]
[null,null,null," do 18% zawartości alkoholu, z wyjątkiem piwa, objętych  zezwoleniem o którym mowa  w art. 95 ust. 4 ustawy ",null,null,null,null,null,null,null,null,null,null,null,null,null,null,null,{"$f":"FGH_Wyprzedaż!I3","v":1},null,null,null,null,null,null,null,"DRUGI URZĄD SKARBOWY W KOSZALINIE","3211"]
[null,null,null," Kwota opłaty do zapłaty dla napojów alkoholowych powyżej 4,5% do 18% zawartości alkoholu,  z wyjątkiem piwa,",null,null,null,null,null,null,null,null,null,null,null,null,null,null,null," 32. ",null,null,null,null,null,null,null,"URZĄD SKARBOWY W KOŚCIANIE","3012"]
[null,null,null," objętych zezwoleniem o którym mowa w art. 95 ust. 4 ustawy ",null,null,null,null,null,null,null,null,null,null,null,null,null,null,null,{"$f":"IF(T118-T121<0,0,T118-T121)","v":0},null,null,null,null,null,null,null,"URZĄD SKARBOWY W KOŚCIERZYNIE","2211"]
[null,null,null," Należy podać kwotę różnicy między wartością z poz. 30 a wartością z poz. 31.",null,null,null,null,null,null,null,null,null,null,null,null,null,null,null,null,null,null,null,null,null,null,null,"URZĄD SKARBOWY W KOZIENICACH","1408"]
[null,null,null,null,null,null,null,null,null,null,null,null,null,null,null,null,null,null,null,null,null,null,null,null,null,null,null,"PIERWSZY URZĄD SKARBOWY KRAKÓW","1207"]
[null,null," H. INFORMACJA DOTYCZĄCA WYPRZEDAŻY NAPOJÓW ALKOHOLOWYCH POWYŻEJ 18%",null,null,null,null,null,null,null,null,null,null,null,null,null,null,null,null,null,null,null,null,null,null,null,null,"URZĄD SKARBOWY KRAKÓW-KROWODRZA","1208"]
[null,null,"      ZAWARTOŚCI ALKOHOLU",null,null,null,null,null,null,null,null,null,null,null,null,null,null,null,null,null,null,null,null,null,null,null,null,"URZĄD SKARBOWY KRAKÓW-NOWA HUTA","1209"]
[null,null,null," 33. Posiadam zezwolenie o którym mowa w art. 95 ust. 4 ustawy, na wyprzedaż napojów alkoholowych powyżej 18% zawartości alkoholu:",null,null,null,null,null,null,null,null,null,null,null,null,null,null,null,null,null,null,null,null,null,null,null,"URZĄD SKARBOWY KRAKÓW-PODGÓRZE","1210"]
[null,null,null,null,null,null,null,null,null,null,"1. tak",null,null,"2. nie",null,null,null,null,null,null,null,null,null,null,null,null,null,"URZĄD SKARBOWY KRAKÓW-PRĄDNIK","1211"]
[null,null,null," Łączna liczba litrów 100% alkoholu zawartego w napojach dla napojów alkoholowych powyżej 8% zawartości",null,null,null,null,null,null,null,null,null,null,null,null,null,null,null," 34. ",null,null,null,null,null,null,null,"URZĄD SKARBOWY KRAKÓW-STARE MIASTO","1212"]
[null,null,null," alkoholu, objętych zezwoleniem o którym mowa w art. 95 ust. 4 ustawy",null,null,null,null,null,null,null,null,null,null,null,null,null,null,null,{"$f":"TRUNC(FGH_Wyprzedaż!J3)","v":11},null,null,null,null,null,null,null,"URZĄD SKARBOWY KRAKÓW-ŚRÓDMIEŚCIE","1213"]
[null,null,null," Liczba mililitrów 100% alkoholu zawartego w napojach dla napojów alkoholowych powyżej 18% zawartości alkoholu,",null,null,null,null,null,null,null,null,null,null,null,null,null,null,null," 34A.",null,null,null,null,null,null,null,"DRUGI URZĄD SKARBOWY KRAKÓW","1228"]
[null,null,null," objętych zezwoleniem o którym mowa w art. 95 ust. 4 ustawy (wypełnia się w przypadku wystąpienia niepełnych litrów)",null,null,null,null,null,null,null,null,null,null,null,null,null,null,null,{"$f":"(FGH_Wyprzedaż!J3-TRUNC(FGH_Wyprzedaż!J3))*1000","v":234},null,null,null,null,null,null,null,"URZĄD SKARBOWY W KRAPKOWICACH","1613"]
[null,null,null," Kwota opłaty ustalona na podstawie art. 92 ust. 11 i 12 ustawy dla napojów alkoholowych powyżej 18% ",null,null,null,null,null,null,null,null,null,null,null,null,null,null,null," 35. ",null,null,null,null,null,null,null,"URZĄD SKARBOWY W KRASNYMSTAWIE","0607"]
[null,null,null," zawartości alkoholu, objętych zezwoleniem o którym mowa w art. 95 ust. 4 ustawy (po zaokrągleniu do pełnych zł)",null,null,null,null,null,null,null,null,null,null,null,null,null,null,null,{"$f":"FGH_Wyprzedaż!K3","v":1},null,null,null,null,null,null,null,"URZĄD SKARBOWY W KRAŚNIKU","0608"]
[null,null,null," Kwota pomniejszenia opłaty ustalona na podstawie art. 92 ust. 14 ustawy dla napojów alkoholowych powyżej 18%",null,null,null,null,null,null,null,null,null,null,null,null,null,null,null," 36. ",null,null,null,null,null,null,null,"URZĄD SKARBOWY W KROŚNIE","1807"]
[null,null,null," zawartości alkoholu, objętych zezwoleniem o którym mowa w art.  95 ust. 4 ustawy ",null,null,null,null,null,null,null,null,null,null,null,null,null,null,null,{"$f":"FGH_Wyprzedaż!L3","v":1},null,null,null,null,null,null,null,"URZĄD SKARBOWY W KROŚNIE ODRZAŃSKIM","0803"]
[null,null,null," Kwota opłaty do zapłaty dla napojów alkoholowych powyżej 18% zawartości alkoholu, objętych zezwoleniem",null,null,null,null,null,null,null,null,null,null,null,null,null,null,null," 37. ",null,null,null,null,null,null,null,"URZĄD SKARBOWY W KROTOSZYNIE","3013"]
[null,null,null," o którym mowa w art. 95 ust. 4 ustawy ",null,null,null,null,null,null,null,null,null,null,null,null,null,null,null,{"$f":"IF(T135-T137<0,0,T135-T137)","v":0},null,null,null,null,null,null,null,"URZĄD SKARBOWY W KUTNIE","1005"]
[null,null,null," Należy podać kwotę różnicy między wartością z poz. 35 a wartością z poz. 36.",null,null,null,null,null,null,null,null,null,null,null,null,null,null,null,null,null,null,null,null,null,null,null,"URZĄD SKARBOWY W KWIDZYNIE","2212"]
[null,null,null,null,null,null,null,null,null,null,null,null,null,null,null,null,null,null,null,null,null,null,null,null,null,null,null,"URZĄD SKARBOWY W LEGIONOWIE","1409"]
[null,null," I. ŁĄCZNA KWOTA DO ZAPŁATY W OKRESIE",null,null,null,null,null,null,null,null,null,null,null,null,null,null,null,null,null,null,null,null,null,null,null,null,"URZĄD SKARBOWY W LEGNICY","0210"]
[null,null,null," Łącznie do zapłaty w okresie ",null,null,null,null,null,null,null,null,null,null,null,null,null,null,null," 38. ",null,null,null,null,null,null,null,"URZĄD SKARBOWY W LESKU","1808"]
[null,null,null," Należy podać łączną kwotę opłaty z poz. 12, 17, 22, 27, 32 i 37.",null,null,null,null,null,null,null,null,null,null,null,null,null,null,null,{"$f":"T54+T69+T91+T106+T123+T139","v":1},null,null,null,null,null,null,null,"URZĄD SKARBOWY W LESZNIE","3014"]
[null,null,null,null,null,null,null,null,null,null,null,null,null,null,null,null,null,null,null,null,null,null,null,null,null,null,null,"URZĄD SKARBOWY W LEŻAJSKU","1809"]
[null,null,"ALK-1(2)",null,"2/3",null,null,null,null,null,null,null,null,null,null,null,null,null,null,null,null,null,null,null,null,null,null,"URZĄD SKARBOWY W LĘBORKU","2213"]
[null,null,null,null,null,null,null,null,null,null,null,null,null,null,null,null,null,null,null,null,null,null,null,null,null,null,null,"URZĄD SKARBOWY W LIMANOWEJ","1214"]
[null,null,null,null,null,null,null,null,null,null,null,null,null,null,null,null,null,null,null,null,null,null,null,null,null,null,null,"URZĄD SKARBOWY W LIPNIE","0410"]
[null,null,null,null,null,null,null,null,null,null,null,null,null,null,null,null,null,null,null,null,null,null,null,null,null,null,null,"URZĄD SKARBOWY W LIPSKU","1447"]
[null,null,"  POLA JASNE WYPEŁNIA PODATNIK, WYPEŁNIĆ KOMPUTEROWO DUŻYMI LITERAMI",null,null,null,null,null,null,null,null,null,null,null,null,null,null,null,null,null,null,null,null,null,null,null,null,"URZĄD SKARBOWY W LUBACZOWIE","1810"]
[null,null,"                 Składanie ALK wyłącznie w wersji elektronicznej",null,null,null,null,null,null,null,null,null,null,null,null,null,null,null,null,null,null,null,null,null,null,null,null,"URZĄD SKARBOWY W LUBANIU","0211"]
[null,null,null,null,null,null,null,null,null,null,null,null,null,null,null,null,null,null,null,null,null,null,null,null,null,null,null,"URZĄD SKARBOWY W LUBARTOWIE","0609"]
[null,null," J. UZASADNIENIE PRZYCZYN ZŁOŻENIA KOREKTY",null,null,null,null,null,null,null,null,null,null,null,null,null,null,null,null,null,null,null,null,null,null,null,null,"URZĄD SKARBOWY W LUBINIE","0212"]
[null,null,null," Treść uzasadnienia",null,null,null,null,null,null,null,null,null,null,null,null,null,null,null,null,null,null,null,null,null,null,null,"PIERWSZY URZĄD SKARBOWY W LUBLINIE","0610"]
[null,null,null,null,null,null,null,null,null,null,null,null,null,null,null,null,null,null,null,null,null,null,null,null,null,null,null,"DRUGI URZĄD SKARBOWY W LUBLINIE","0611"]
[null,null,null,null,null,null,null,null,null,null,null,null,null,null,null,null,null,null,null,null,null,null,null,null,null,null,null,"TRZECI URZĄD SKARBOWY W LUBLINIE","0612"]
[null,null," K. DANE OSOBY WSKAZANEJ DO KONTAKTU",null,null,null,null,null,null,null,null,null,null,null,null,null,null,null,null,null,null,null,null,null,null,null,null,"LUBELSKI URZĄD SKARBOWY W LUBLINIE","0671"]
[null,null,null," 39. Imię i nazwisko",null,null,null,null,null,null,null,null,null,null,null,null,null,null,null,null,null,null,null,null,null,null,null,"URZĄD SKARBOWY W LUBLIŃCU","2419"]
[null,null,null,null,null,null,null,null,null,null,null,null,null,null,null,null,null,null,null,null,null,null,null,null,null,null,null,"URZĄD SKARBOWY W LWÓWKU ŚLĄSKIM","0213"]
[null,null,null," 40. Telefon kontaktowy",null,null,null,null,null,null,null,null,null," 41. Adres e-mail",null,null,null,null,null,null,null,null,null,null,null,null,null,"URZĄD SKARBOWY W ŁAŃCUCIE","1811"]
[null,null,null,null,null,null,null,null,null,null,null,null,null,null,null,null,null,null,null,null,null,null,null,null,null,null,null,"URZĄD SKARBOWY W ŁASKU","1006"]
[null,null,null,null,null,null,null,null,null,null,null,null,null,null,null,null,null,null,null,null,null,null,null,null,null,null,null,"URZĄD SKARBOWY W ŁĘCZNEJ","0621"]
[null,null," L. DATA SPORZĄDZENIA",null,null,null,null,null,null,null,null,null,null,null,null,null,null,null,null,null,null,null,null,null,null,null,null,"URZĄD SKARBOWY W ŁĘCZYCY","1028"]
[null,null,null," 42. Data i czas wytworzenia ALK",null,null,null,null,null,null,null,null,null,null,null,null,null,null,null,null,null,null,null,null,null,null,null,"URZĄD SKARBOWY W ŁOMŻY","2008"]
[null,null,null,"2024-01-17T18:23:08",null,null,null,null,null,null,null,null,null,null,null,null,null,null,null,null,null,null,null,null,null,null,null,"URZĄD SKARBOWY W ŁOSICACH","1410"]
[null,null,"Objaśnienie",null,null,null,null,null,null,null,null,null,null,null,null,null,null,null,null,null,null,null,null,null,null,null,null,"URZĄD SKARBOWY W ŁOWICZU","1007"]
[null,null,"1) Zgodnie z art. 81 ustawy z dnia 29 sierpnia 1997 r. - Ordynacja podatkowa (Dz. U. z 2020 r. poz. 2651, z późn. zm. ).",null,null,null,null,null,null,null,null,null,null,null,null,null,null,null,null,null,null,null,null,null,null,null,null,"PIERWSZY URZĄD SKARBOWY ŁÓDŹ-BAŁUTY","1008"]
[null,null,null,null,null,null,null,null,null,null,null,null,null,null,null,null,null,null,null,null,null,null,null,null,null,null,null,"DRUGI URZĄD SKARBOWY ŁÓDŹ-BAŁUTY","1009"]
[null,null,"Pouczenia",null,null,null,null,null,null,null,null,null,null,null,null,null,null,null,null,null,null,null,null,null,null,null,null,"PIERWSZY URZĄD SKARBOWY ŁÓDŹ-GÓRNA","1010"]
[null,null," W przypadku niewpłacenia w obowiązujących terminach kwoty z poz. 38 lub wpłacenia jej w niepełnej wysokości niniejsza informacja stanowi",null,null,null,null,null,null,null,null,null,null,null,null,null,null,null,null,null,null,null,null,null,null,null,null,"DRUGI URZĄD SKARBOWY ŁÓDŹ-GÓRNA","1011"]
[null,null,"podstawę do wystawienia tytułu wykonawczego, zgodnie z przepisami ustawy z dnia 17 czerwca 1966 r. o postępowaniu egzekucyjnym w ",null,null,null,null,null,null,null,null,null,null,null,null,null,null,null,null,null,null,null,null,null,null,null,null,"URZĄD SKARBOWY ŁÓDŹ-POLESIE","1012"]
[null,null,"administracji (Dz. U. z 2022 r. poz. 479, z późn. zm.).",null,null,null,null,null,null,null,null,null,null,null,null,null,null,null,null,null,null,null,null,null,null,null,null,"URZĄD SKARBOWY ŁÓDŹ-ŚRÓDMIEŚCIE","1013"]
[null,null,"Za podanie nieprawdy lub zatajenie prawdy i przez to narażenie podatku na uszczuplenie grozi odpowiedzialność przewidziana w Kodeksie ",null,null,null,null,null,null,null,null,null,null,null,null,null,null,null,null,null,null,null,null,null,null,null,null,"URZĄD SKARBOWY ŁÓDŹ-WIDZEW","1014"]
[null,null,"karnym skarbowym.",null,null,null,null,null,null,null,null,null,null,null,null,null,null,null,null,null,null,null,null,null,null,null,null,"ŁÓDZKI URZĄD SKARBOWY W ŁODZI","1071"]
[null,null,null,null,null,null,null,null,null,null,null,null,null,null,null,null,null,null,null,null,null,null,null,null,null,null,null,"URZĄD SKARBOWY W ŁUKOWIE","0613"]
[null,null,"Objaśnienie",null,null,null,null,null,null,null,null,null,null,null,null,null,null,null,null,null,null,null,null,null,null,null,null,"URZĄD SKARBOWY W MAKOWIE MAZOWIECKIM","1411"]
[null,null,"do informacji dotyczącej faktur lub innych dokumentów potwierdzających zaopatrzenie w napoje alkoholowe",null,null,null,null,null,null,null,null,null,null,null,null,null,null,null,null,null,null,null,null,null,null,null,null,"URZĄD SKARBOWY W MALBORKU","2214"]
[null,null,null,null,null,null,null,null,null,null,null,null,null,null,null,null,null,null,null,null,null,null,null,null,null,null,null,"MAŁOPOLSKI URZĄD SKARBOWY W KRAKOWIE","1271"]
[null,null," 1) Podmiot zobowiązany do zapłaty opłaty wskazuje odpowiednio:",null,null,null,null,null,null,null,null,null,null,null,null,null,null,null,null,null,null,null,null,null,null,null,null,"URZĄD SKARBOWY W MIECHOWIE","1215"]
[null,null,"- Identyfikator podatkowy NIP nabywcy (przedsiębiorcy posiadającego zezwolenie na sprzedaż detaliczną napojów alkoholowych), w przypadku gdy obowiązany do zapłaty opłaty zaopatruje przedsiębiorcę posiadającego zezwolenie na sprzedaż detaliczną napojów alkoholowych przeznaczonych do spożycia poza miejscem sprzedaży,",null,null,null,null,null,null,null,null,null,null,null,null,null,null,null,null,null,null,null,null,null,null,null,null,"URZĄD SKARBOWY W MIELCU","1812"]
[null,null,"- Identyfikator podatkowy NIP dostawcy (np. producenta lub innego przedsiębiorcy posiadającego zezwolenie, o którym mowa w art. 9 ust. 1 lub 2, albo zezwolenie na wyprzedaż, o którym mowa w art. 95 ust. 4, ustawy z dnia 26 października 1982 r. o wychowaniu w trzeźwości i przeciwdziałaniu alkoholizmowi (Dz. U. z 2023 r. poz. 165, z późn. zm.), w przypadku gdy obowiązany do zapłaty opłaty posiadający również zezwolenie na sprzedaż detaliczną napojów alkoholowych sam dokonuje sprzedaży detalicznej napojów przeznaczonych do spożycia poza miejscem sprzedaży.",null,null,null,null,null,null,null,null,null,null,null,null,null,null,null,null,null,null,null,null,null,null,null,null,"URZĄD SKARBOWY W MIĘDZYCHODZIE","3015"]
[null,null,null,null,null,null,null,null,null,null,null,null,null,null,null,null,null,null,null,null,null,null,null,null,null,null,null,"URZĄD SKARBOWY W MIĘDZYRZECZU","0804"]
[null,null,null,null,null,null,null,null,null,null,null,null,null,null,null,null,null,null,null,null,null,null,null,null,null,null,null,"URZĄD SKARBOWY W MIKOŁOWIE","2420"]
[null,null,null,null,null,null,null,null,null,null,null,null,null,null,null,null,null,null,null,null,null,null,null,null,null,null,null,"URZĄD SKARBOWY W MILICZU","0214"]
[null,null,null,null,null,null,null,null,null,null,null,null,null,null,null,null,null,null,null,null,null,null,null,null,null,null,null,"URZĄD SKARBOWY W MIŃSKU MAZOWIECKIM","1412"]
[null,null,null,null,null,null,null,null,null,null,null,null,null,null,null,null,null,null,null,null,null,null,null,null,null,null,null,"URZĄD SKARBOWY W MŁAWIE","1413"]
[null,null,null,null,null,null,null,null,null,null,null,null,null,null,null,null,null,null,null,null,null,null,null,null,null,null,null,"URZĄD SKARBOWY W MOGILNIE","0411"]
[null,null,null,null,null,null,null,null,null,null,null,null,null,null,null,null,null,null,null,"ALK-1(2)",null,null,null,"3/3",null,null,null,"URZĄD SKARBOWY W MOŃKACH","2009"]
[null,null,null,null,null,null,null,null,null,null,null,null,null,null,null,null,null,null,null,null,null,null,null,null,null,null,null,"URZĄD SKARBOWY W MYSŁOWICACH","2421"]
[null,null,null,null,null,null,null,null,null,null,null,null,null,null,null,null,null,null,null,null,null,null,null,null,null,null,null,"URZĄD SKARBOWY W MYSZKOWIE","2422"]
[null,null,null,null,null,null,null,null,null,null,null,null,null,null,null,null,null,null,null,null,null,null,null,null,null,null,null,"URZĄD SKARBOWY W MYŚLENICACH","1216"]
[null,null,null,null,null,null,null,null,null,null,null,null,null,null,null,null,null,null,null,null,null,null,null,null,null,null,null,"URZĄD SKARBOWY W MYŚLIBORZU","3212"]
[null,null,null,null,null,null,null,null,null,null,null,null,null,null,null,null,null,null,null,null,null,null,null,null,null,null,null,"URZĄD SKARBOWY W NAKLE NAD NOTECIĄ","0412"]
[null,null,null,null,null,null,null,null,null,null,null,null,null,null,null,null,null,null,null,null,null,null,null,null,null,null,null,"URZĄD SKARBOWY W NAMYSŁOWIE","1606"]
[null,null,null,null,null,null,null,null,null,null,null,null,null,null,null,null,null,null,null,null,null,null,null,null,null,null,null,"URZĄD SKARBOWY W NIDZICY","2810"]
[null,null,null,null,null,null,null,null,null,null,null,null,null,null,null,null,null,null,null,null,null,null,null,null,null,null,null,"URZĄD SKARBOWY W NISKU","1823"]
[null,null,null,null,null,null,null,null,null,null,null,null,null,null,null,null,null,null,null,null,null,null,null,null,null,null,null,"URZĄD SKARBOWY W NOWEJ RUDZIE","0215"]
[null,null,null,null,null,null,null,null,null,null,null,null,null,null,null,null,null,null,null,null,null,null,null,null,null,null,null,"URZĄD SKARBOWY W NOWEJ SOLI","0805"]
[null,null,null,null,null,null,null,null,null,null,null,null,null,null,null,null,null,null,null,null,null,null,null,null,null,null,null,"URZĄD SKARBOWY W NOWYM DWORZE MAZOWIECKIM","1414"]
[null,null,null,null,null,null,null,null,null,null,null,null,null,null,null,null,null,null,null,null,null,null,null,null,null,null,null,"URZĄD SKARBOWY W NOWYM MIEŚCIE LUBAWSKIM","2811"]
[null,null,null,null,null,null,null,null,null,null,null,null,null,null,null,null,null,null,null,null,null,null,null,null,null,null,null,"URZĄD SKARBOWY W NOWYM SĄCZU","1217"]
[null,null,null,null,null,null,null,null,null,null,null,null,null,null,null,null,null,null,null,null,null,null,null,null,null,null,null,"URZĄD SKARBOWY W NOWYM TARGU","1218"]
[null,null,null,null,null,null,null,null,null,null,null,null,null,null,null,null,null,null,null,null,null,null,null,null,null,null,null,"URZĄD SKARBOWY W NOWYM TOMYŚLU","3016"]
[null,null,null,null,null,null,null,null,null,null,null,null,null,null,null,null,null,null,null,null,null,null,null,null,null,null,null,"URZĄD SKARBOWY W NYSIE","1607"]
[null,null,null,null,null,null,null,null,null,null,null,null,null,null,null,null,null,null,null,null,null,null,null,null,null,null,null,"URZĄD SKARBOWY W OBORNIKACH","3038"]
[null,null,null,null,null,null,null,null,null,null,null,null,null,null,null,null,null,null,null,null,null,null,null,null,null,null,null,"URZĄD SKARBOWY W OLECKU","2812"]
[null,null,null,null,null,null,null,null,null,null,null,null,null,null,null,null,null,null,null,null,null,null,null,null,null,null,null,"URZĄD SKARBOWY W OLEŚNICY","0216"]
[null,null,null,null,null,null,null,null,null,null,null,null,null,null,null,null,null,null,null,null,null,null,null,null,null,null,null,"URZĄD SKARBOWY W OLEŚNIE","1608"]
[null,null,null,null,null,null,null,null,null,null,null,null,null,null,null,null,null,null,null,null,null,null,null,null,null,null,null,"URZĄD SKARBOWY W OLKUSZU","1219"]
[null,null,null,null,null,null,null,null,null,null,null,null,null,null,null,null,null,null,null,null,null,null,null,null,null,null,null,"URZĄD SKARBOWY W OLSZTYNIE","2813"]
[null,null,null,null,null,null,null,null,null,null,null,null,null,null,null,null,null,null,null,null,null,null,null,null,null,null,null,"WARMIŃSKO-MAZURSKI URZĄD SKARBOWY W OLSZTYNIE","2871"]
[null,null,null,null,null,null,null,null,null,null,null,null,null,null,null,null,null,null,null,null,null,null,null,null,null,null,null,"URZĄD SKARBOWY W OŁAWIE","0217"]
[null,null,null,null,null,null,null,null,null,null,null,null,null,null,null,null,null,null,null,null,null,null,null,null,null,null,null,"URZĄD SKARBOWY W OPATOWIE","2607"]
[null,null,null,null,null,null,null,null,null,null,null,null,null,null,null,null,null,null,null,null,null,null,null,null,null,null,null,"URZĄD SKARBOWY W OPOCZNIE","1015"]
[null,null,null,null,null,null,null,null,null,null,null,null,null,null,null,null,null,null,null,null,null,null,null,null,null,null,null,"PIERWSZY URZĄD SKARBOWY W OPOLU","1609"]
[null,null,null,null,null,null,null,null,null,null,null,null,null,null,null,null,null,null,null,null,null,null,null,null,null,null,null,"DRUGI URZĄD SKARBOWY W OPOLU","1610"]
[null,null,null,null,null,null,null,null,null,null,null,null,null,null,null,null,null,null,null,null,null,null,null,null,null,null,null,"OPOLSKI URZĄD SKARBOWY W OPOLU","1671"]
[null,null,null,null,null,null,null,null,null,null,null,null,null,null,null,null,null,null,null,null,null,null,null,null,null,null,null,"URZĄD SKARBOWY W OPOLU LUBELSKIM","0614"]
[null,null,null,null,null,null,null,null,null,null,null,null,null,null,null,null,null,null,null,null,null,null,null,null,null,null,null,"URZĄD SKARBOWY W OSTROŁĘCE","1415"]
[null,null,null,null,null,null,null,null,null,null,null,null,null,null,null,null,null,null,null,null,null,null,null,null,null,null,null,"URZĄD SKARBOWY W OSTROWCU ŚWIĘTOKRZYSKIM","2608"]
[null,null,null,null,null,null,null,null,null,null,null,null,null,null,null,null,null,null,null,null,null,null,null,null,null,null,null,"URZĄD SKARBOWY W OSTROWI MAZOWIECKIEJ","1416"]
[null,null,null,null,null,null,null,null,null,null,null,null,null,null,null,null,null,null,null,null,null,null,null,null,null,null,null,"URZĄD SKARBOWY W OSTROWIE WIELKOPOLSKIM","3017"]
[null,null,null,null,null,null,null,null,null,null,null,null,null,null,null,null,null,null,null,null,null,null,null,null,null,null,null,"URZĄD SKARBOWY W OSTRÓDZIE","2814"]
[null,null,null,null,null,null,null,null,null,null,null,null,null,null,null,null,null,null,null,null,null,null,null,null,null,null,null,"URZĄD SKARBOWY W OSTRZESZOWIE","3018"]
[null,null,null,null,null,null,null,null,null,null,null,null,null,null,null,null,null,null,null,null,null,null,null,null,null,null,null,"URZĄD SKARBOWY W OŚWIĘCIMIU","1220"]
[null,null,null,null,null,null,null,null,null,null,null,null,null,null,null,null,null,null,null,null,null,null,null,null,null,null,null,"URZĄD SKARBOWY W OTWOCKU","1417"]
[null,null,null,null,null,null,null,null,null,null,null,null,null,null,null,null,null,null,null,null,null,null,null,null,null,null,null,"URZĄD SKARBOWY W PABIANICACH","1016"]
[null,null,null,null,null,null,null,null,null,null,null,null,null,null,null,null,null,null,null,null,null,null,null,null,null,null,null,"URZĄD SKARBOWY W PAJĘCZNIE","1029"]
[null,null,null,null,null,null,null,null,null,null,null,null,null,null,null,null,null,null,null,null,null,null,null,null,null,null,null,"URZĄD SKARBOWY W PARCZEWIE","0615"]
[null,null,null,null,null,null,null,null,null,null,null,null,null,null,null,null,null,null,null,null,null,null,null,null,null,null,null,"URZĄD SKARBOWY W PIASECZNIE","1418"]
[null,null,null,null,null,null,null,null,null,null,null,null,null,null,null,null,null,null,null,null,null,null,null,null,null,null,null,"URZĄD SKARBOWY W PIEKARACH ŚLĄSKICH","2423"]
[null,null,null,null,null,null,null,null,null,null,null,null,null,null,null,null,null,null,null,null,null,null,null,null,null,null,null,"URZĄD SKARBOWY W PILE","3019"]
[null,null,null,null,null,null,null,null,null,null,null,null,null,null,null,null,null,null,null,null,null,null,null,null,null,null,null,"URZĄD SKARBOWY W PIŃCZOWIE","2609"]
[null,null,null,null,null,null,null,null,null,null,null,null,null,null,null,null,null,null,null,null,null,null,null,null,null,null,null,"URZĄD SKARBOWY W PIOTRKOWIE TRYBUNALSKIM","1017"]
[null,null,null,null,null,null,null,null,null,null,null,null,null,null,null,null,null,null,null,null,null,null,null,null,null,null,null,"URZĄD SKARBOWY W PISZU","2815"]
[null,null,null,null,null,null,null,null,null,null,null,null,null,null,null,null,null,null,null,null,null,null,null,null,null,null,null,"URZĄD SKARBOWY W PLESZEWIE","3039"]
[null,null,null,null,null,null,null,null,null,null,null,null,null,null,null,null,null,null,null,null,null,null,null,null,null,null,null,"URZĄD SKARBOWY W PŁOCKU","1419"]
[null,null,null,null,null,null,null,null,null,null,null,null,null,null,null,null,null,null,null,null,null,null,null,null,null,null,null,"URZĄD SKARBOWY W PŁOŃSKU","1420"]
[null,null,null,null,null,null,null,null,null,null,null,null,null,null,null,null,null,null,null,null,null,null,null,null,null,null,null,"URZĄD SKARBOWY W PODDĘBICACH","1018"]
[null,null,null,null,null,null,null,null,null,null,null,null,null,null,null,null,null,null,null,null,null,null,null,null,null,null,null,"PODLASKI URZĄD SKARBOWY W BIAŁYMSTOKU","2071"]
[null,null,null,null,null,null,null,null,null,null,null,null,null,null,null,null,null,null,null,null,null,null,null,null,null,null,null,"URZĄD SKARBOWY W POLKOWICACH","0234"]
[null,null,null,null,null,null,null,null,null,null,null,null,null,null,null,null,null,null,null,null,null,null,null,null,null,null,null,"URZĄD SKARBOWY POZNAŃ-GRUNWALD","3020"]
[null,null,null,null,null,null,null,null,null,null,null,null,null,null,null,null,null,null,null,null,null,null,null,null,null,null,null,"URZĄD SKARBOWY POZNAŃ-JEŻYCE","3021"]
[null,null,null,null,null,null,null,null,null,null,null,null,null,null,null,null,null,null,null,null,null,null,null,null,null,null,null,"URZĄD SKARBOWY POZNAŃ-NOWE MIASTO","3022"]
[null,null,null,null,null,null,null,null,null,null,null,null,null,null,null,null,null,null,null,null,null,null,null,null,null,null,null,"PIERWSZY URZĄD SKARBOWY W POZNANIU","3023"]
[null,null,null,null,null,null,null,null,null,null,null,null,null,null,null,null,null,null,null,null,null,null,null,null,null,null,null,"URZĄD SKARBOWY POZNAŃ-WINOGRADY","3025"]
[null,null,null,null,null,null,null,null,null,null,null,null,null,null,null,null,null,null,null,null,null,null,null,null,null,null,null,"URZĄD SKARBOWY POZNAŃ-WILDA","3026"]
[null,null,null,null,null,null,null,null,null,null,null,null,null,null,null,null,null,null,null,null,null,null,null,null,null,null,null,"PIERWSZY WIELKOPOLSKI URZĄD SKARBOWY W POZNANIU","3071"]
[null,null,null,null,null,null,null,null,null,null,null,null,null,null,null,null,null,null,null,null,null,null,null,null,null,null,null,"URZĄD SKARBOWY W PROSZOWICACH","1221"]
[null,null,null,null,null,null,null,null,null,null,null,null,null,null,null,null,null,null,null,null,null,null,null,null,null,null,null,"URZĄD SKARBOWY W PRUDNIKU","1611"]
[null,null,null,null,null,null,null,null,null,null,null,null,null,null,null,null,null,null,null,null,null,null,null,null,null,null,null,"URZĄD SKARBOWY W PRUSZCZU GDAŃSKIM","2221"]
[null,null,null,null,null,null,null,null,null,null,null,null,null,null,null,null,null,null,null,null,null,null,null,null,null,null,null,"URZĄD SKARBOWY W PRUSZKOWIE","1421"]
[null,null,null,null,null,null,null,null,null,null,null,null,null,null,null,null,null,null,null,null,null,null,null,null,null,null,null,"URZĄD SKARBOWY W PRZASNYSZU","1422"]
[null,null,null,null,null,null,null,null,null,null,null,null,null,null,null,null,null,null,null,null,null,null,null,null,null,null,null,"URZĄD SKARBOWY W PRZEMYŚLU","1813"]
[null,null,null,null,null,null,null,null,null,null,null,null,null,null,null,null,null,null,null,null,null,null,null,null,null,null,null,"URZĄD SKARBOWY W PRZEWORSKU","1814"]
[null,null,null,null,null,null,null,null,null,null,null,null,null,null,null,null,null,null,null,null,null,null,null,null,null,null,null,"URZĄD SKARBOWY W PRZYSUSZE","1448"]
[null,null,null,null,null,null,null,null,null,null,null,null,null,null,null,null,null,null,null,null,null,null,null,null,null,null,null,"URZĄD SKARBOWY W PSZCZYNIE","2424"]
[null,null,null,null,null,null,null,null,null,null,null,null,null,null,null,null,null,null,null,null,null,null,null,null,null,null,null,"URZĄD SKARBOWY W PUCKU","2215"]
[null,null,null,null,null,null,null,null,null,null,null,null,null,null,null,null,null,null,null,null,null,null,null,null,null,null,null,"URZĄD SKARBOWY W PUŁAWACH","0616"]
[null,null,null,null,null,null,null,null,null,null,null,null,null,null,null,null,null,null,null,null,null,null,null,null,null,null,null,"URZĄD SKARBOWY W PUŁTUSKU","1423"]
[null,null,null,null,null,null,null,null,null,null,null,null,null,null,null,null,null,null,null,null,null,null,null,null,null,null,null,"URZĄD SKARBOWY W PYRZYCACH","3213"]
[null,null,null,null,null,null,null,null,null,null,null,null,null,null,null,null,null,null,null,null,null,null,null,null,null,null,null,"URZĄD SKARBOWY W RACIBORZU","2425"]
[null,null,null,null,null,null,null,null,null,null,null,null,null,null,null,null,null,null,null,null,null,null,null,null,null,null,null,"PIERWSZY URZĄD SKARBOWY W RADOMIU","1424"]
[null,null,null,null,null,null,null,null,null,null,null,null,null,null,null,null,null,null,null,null,null,null,null,null,null,null,null,"DRUGI URZĄD SKARBOWY W RADOMIU","1425"]
[null,null,null,null,null,null,null,null,null,null,null,null,null,null,null,null,null,null,null,null,null,null,null,null,null,null,null,"TRZECI MAZOWIECKI URZĄD SKARBOWY W RADOMIU","1473"]
[null,null,null,null,null,null,null,null,null,null,null,null,null,null,null,null,null,null,null,null,null,null,null,null,null,null,null,"URZĄD SKARBOWY W RADOMSKU","1019"]
[null,null,null,null,null,null,null,null,null,null,null,null,null,null,null,null,null,null,null,null,null,null,null,null,null,null,null,"URZĄD SKARBOWY W RADZIEJOWIE","0413"]
[null,null,null,null,null,null,null,null,null,null,null,null,null,null,null,null,null,null,null,null,null,null,null,null,null,null,null,"URZĄD SKARBOWY W RADZYNIU PODLASKIM","0617"]
[null,null,null,null,null,null,null,null,null,null,null,null,null,null,null,null,null,null,null,null,null,null,null,null,null,null,null,"URZĄD SKARBOWY W RAWICZU","3027"]
[null,null,null,null,null,null,null,null,null,null,null,null,null,null,null,null,null,null,null,null,null,null,null,null,null,null,null,"URZĄD SKARBOWY W RAWIE MAZOWIECKIEJ","1020"]
[null,null,null,null,null,null,null,null,null,null,null,null,null,null,null,null,null,null,null,null,null,null,null,null,null,null,null,"URZĄD SKARBOWY W ROPCZYCACH","1815"]
[null,null,null,null,null,null,null,null,null,null,null,null,null,null,null,null,null,null,null,null,null,null,null,null,null,null,null,"URZĄD SKARBOWY W RUDZIE ŚLĄSKIEJ","2426"]
[null,null,null,null,null,null,null,null,null,null,null,null,null,null,null,null,null,null,null,null,null,null,null,null,null,null,null,"URZĄD SKARBOWY W RYBNIKU","2427"]
[null,null,null,null,null,null,null,null,null,null,null,null,null,null,null,null,null,null,null,null,null,null,null,null,null,null,null,"URZĄD SKARBOWY W RYKACH","0622"]
[null,null,null,null,null,null,null,null,null,null,null,null,null,null,null,null,null,null,null,null,null,null,null,null,null,null,null,"URZĄD SKARBOWY W RYPINIE","0414"]
[null,null,null,null,null,null,null,null,null,null,null,null,null,null,null,null,null,null,null,null,null,null,null,null,null,null,null,"PIERWSZY URZĄD SKARBOWY W RZESZOWIE","1816"]
[null,null,null,null,null,null,null,null,null,null,null,null,null,null,null,null,null,null,null,null,null,null,null,null,null,null,null,"DRUGI URZĄD SKARBOWY W RZESZOWIE","1822"]
[null,null,null,null,null,null,null,null,null,null,null,null,null,null,null,null,null,null,null,null,null,null,null,null,null,null,null,"PODKARPACKI URZĄD SKARBOWY W RZESZOWIE","1871"]
[null,null,null,null,null,null,null,null,null,null,null,null,null,null,null,null,null,null,null,null,null,null,null,null,null,null,null,"URZĄD SKARBOWY W SANDOMIERZU","2610"]
[null,null,null,null,null,null,null,null,null,null,null,null,null,null,null,null,null,null,null,null,null,null,null,null,null,null,null,"URZĄD SKARBOWY W SANOKU","1817"]
[null,null,null,null,null,null,null,null,null,null,null,null,null,null,null,null,null,null,null,null,null,null,null,null,null,null,null,"URZĄD SKARBOWY W SĘPÓLNIE KRAJEŃSKIM","0423"]
[null,null,null,null,null,null,null,null,null,null,null,null,null,null,null,null,null,null,null,null,null,null,null,null,null,null,null,"URZĄD SKARBOWY W SIEDLCACH","1426"]
[null,null,null,null,null,null,null,null,null,null,null,null,null,null,null,null,null,null,null,null,null,null,null,null,null,null,null,"URZĄD SKARBOWY W SIEMIANOWICACH ŚLĄSKICH","2428"]
[null,null,null,null,null,null,null,null,null,null,null,null,null,null,null,null,null,null,null,null,null,null,null,null,null,null,null,"URZĄD SKARBOWY W SIEMIATYCZACH","2010"]
[null,null,null,null,null,null,null,null,null,null,null,null,null,null,null,null,null,null,null,null,null,null,null,null,null,null,null,"URZĄD SKARBOWY W SIERADZU","1021"]
[null,null,null,null,null,null,null,null,null,null,null,null,null,null,null,null,null,null,null,null,null,null,null,null,null,null,null,"URZĄD SKARBOWY W SIERPCU","1427"]
[null,null,null,null,null,null,null,null,null,null,null,null,null,null,null,null,null,null,null,null,null,null,null,null,null,null,null,"URZĄD SKARBOWY W SKARŻYSKU-KAMIENNEJ","2611"]
[null,null,null,null,null,null,null,null,null,null,null,null,null,null,null,null,null,null,null,null,null,null,null,null,null,null,null,"URZĄD SKARBOWY W SKIERNIEWICACH","1022"]
[null,null,null,null,null,null,null,null,null,null,null,null,null,null,null,null,null,null,null,null,null,null,null,null,null,null,null,"URZĄD SKARBOWY W SŁUBICACH","0806"]
[null,null,null,null,null,null,null,null,null,null,null,null,null,null,null,null,null,null,null,null,null,null,null,null,null,null,null,"URZĄD SKARBOWY W SŁUPCY","3028"]
[null,null,null,null,null,null,null,null,null,null,null,null,null,null,null,null,null,null,null,null,null,null,null,null,null,null,null,"URZĄD SKARBOWY W SŁUPSKU","2216"]
[null,null,null,null,null,null,null,null,null,null,null,null,null,null,null,null,null,null,null,null,null,null,null,null,null,null,null,"URZĄD SKARBOWY W SOCHACZEWIE","1428"]
[null,null,null,null,null,null,null,null,null,null,null,null,null,null,null,null,null,null,null,null,null,null,null,null,null,null,null,"URZĄD SKARBOWY W SOKOŁOWIE PODLASKIM","1429"]
[null,null,null,null,null,null,null,null,null,null,null,null,null,null,null,null,null,null,null,null,null,null,null,null,null,null,null,"URZĄD SKARBOWY W SOKÓŁCE","2011"]
[null,null,null,null,null,null,null,null,null,null,null,null,null,null,null,null,null,null,null,null,null,null,null,null,null,null,null,"URZĄD SKARBOWY W SOPOCIE","2217"]
[null,null,null,null,null,null,null,null,null,null,null,null,null,null,null,null,null,null,null,null,null,null,null,null,null,null,null,"URZĄD SKARBOWY W SOSNOWCU","2429"]
[null,null,null,null,null,null,null,null,null,null,null,null,null,null,null,null,null,null,null,null,null,null,null,null,null,null,null,"PIERWSZY ŚLĄSKI URZĄD SKARBOWY W SOSNOWCU","2471"]
[null,null,null,null,null,null,null,null,null,null,null,null,null,null,null,null,null,null,null,null,null,null,null,null,null,null,null,"URZĄD SKARBOWY W STALOWEJ WOLI","1818"]
[null,null,null,null,null,null,null,null,null,null,null,null,null,null,null,null,null,null,null,null,null,null,null,null,null,null,null,"URZĄD SKARBOWY W STARACHOWICACH","2612"]
[null,null,null,null,null,null,null,null,null,null,null,null,null,null,null,null,null,null,null,null,null,null,null,null,null,null,null,"URZĄD SKARBOWY W STARGARDZIE","3214"]
[null,null,null,null,null,null,null,null,null,null,null,null,null,null,null,null,null,null,null,null,null,null,null,null,null,null,null,"URZĄD SKARBOWY W STAROGARDZIE GDAŃSKIM","2218"]
[null,null,null,null,null,null,null,null,null,null,null,null,null,null,null,null,null,null,null,null,null,null,null,null,null,null,null,"URZĄD SKARBOWY W STASZOWIE","2613"]
[null,null,null,null,null,null,null,null,null,null,null,null,null,null,null,null,null,null,null,null,null,null,null,null,null,null,null,"URZĄD SKARBOWY W STRZELCACH OPOLSKICH","1612"]
[null,null,null,null,null,null,null,null,null,null,null,null,null,null,null,null,null,null,null,null,null,null,null,null,null,null,null,"URZĄD SKARBOWY W STRZELINIE","0218"]
[null,null,null,null,null,null,null,null,null,null,null,null,null,null,null,null,null,null,null,null,null,null,null,null,null,null,null,"URZĄD SKARBOWY W STRZYŻOWIE","1819"]
[null,null,null,null,null,null,null,null,null,null,null,null,null,null,null,null,null,null,null,null,null,null,null,null,null,null,null,"URZĄD SKARBOWY W SUCHEJ BESKIDZKIEJ","1222"]
[null,null,null,null,null,null,null,null,null,null,null,null,null,null,null,null,null,null,null,null,null,null,null,null,null,null,null,"URZĄD SKARBOWY W SULĘCINIE","0813"]
[null,null,null,null,null,null,null,null,null,null,null,null,null,null,null,null,null,null,null,null,null,null,null,null,null,null,null,"URZĄD SKARBOWY W SUWAŁKACH","2012"]
[null,null,null,null,null,null,null,null,null,null,null,null,null,null,null,null,null,null,null,null,null,null,null,null,null,null,null,"URZĄD SKARBOWY W SZAMOTUŁACH","3029"]
[null,null,null,null,null,null,null,null,null,null,null,null,null,null,null,null,null,null,null,null,null,null,null,null,null,null,null,"PIERWSZY URZĄD SKARBOWY W SZCZECINIE","3215"]
[null,null,null,null,null,null,null,null,null,null,null,null,null,null,null,null,null,null,null,null,null,null,null,null,null,null,null,"DRUGI URZĄD SKARBOWY W SZCZECINIE","3216"]
[null,null,null,null,null,null,null,null,null,null,null,null,null,null,null,null,null,null,null,null,null,null,null,null,null,null,null,"TRZECI URZĄD SKARBOWY W SZCZECINIE","3217"]
[null,null,null,null,null,null,null,null,null,null,null,null,null,null,null,null,null,null,null,null,null,null,null,null,null,null,null,"ZACHODNIOPOMORSKI URZĄD SKARBOWY W SZCZECINIE","3271"]
[null,null,null,null,null,null,null,null,null,null,null,null,null,null,null,null,null,null,null,null,null,null,null,null,null,null,null,"URZĄD SKARBOWY W SZCZECINKU","3218"]
[null,null,null,null,null,null,null,null,null,null,null,null,null,null,null,null,null,null,null,null,null,null,null,null,null,null,null,"URZĄD SKARBOWY W SZCZYTNIE","2816"]
[null,null,null,null,null,null,null,null,null,null,null,null,null,null,null,null,null,null,null,null,null,null,null,null,null,null,null,"URZĄD SKARBOWY W SZYDŁOWCU","1430"]
[null,null,null,null,null,null,null,null,null,null,null,null,null,null,null,null,null,null,null,null,null,null,null,null,null,null,null,"URZĄD SKARBOWY W ŚREMIE","3030"]
[null,null,null,null,null,null,null,null,null,null,null,null,null,null,null,null,null,null,null,null,null,null,null,null,null,null,null,"URZĄD SKARBOWY W ŚRODZIE ŚLĄSKIEJ","0219"]
[null,null,null,null,null,null,null,null,null,null,null,null,null,null,null,null,null,null,null,null,null,null,null,null,null,null,null,"URZĄD SKARBOWY W ŚRODZIE WIELKOPOLSKIEJ","3031"]
[null,null,null,null,null,null,null,null,null,null,null,null,null,null,null,null,null,null,null,null,null,null,null,null,null,null,null,"URZĄD SKARBOWY W ŚWIDNICY","0220"]
[null,null,null,null,null,null,null,null,null,null,null,null,null,null,null,null,null,null,null,null,null,null,null,null,null,null,null,"URZĄD SKARBOWY W ŚWIEBODZINIE","0807"]
[null,null,null,null,null,null,null,null,null,null,null,null,null,null,null,null,null,null,null,null,null,null,null,null,null,null,null,"URZĄD SKARBOWY W ŚWIECIU","0415"]
[null,null,null,null,null,null,null,null,null,null,null,null,null,null,null,null,null,null,null,null,null,null,null,null,null,null,null,"ŚWIĘTOKRZYSKI URZĄD SKARBOWY W KIELCACH","2671"]
[null,null,null,null,null,null,null,null,null,null,null,null,null,null,null,null,null,null,null,null,null,null,null,null,null,null,null,"URZĄD SKARBOWY W ŚWINOUJŚCIU","3219"]
[null,null,null,null,null,null,null,null,null,null,null,null,null,null,null,null,null,null,null,null,null,null,null,null,null,null,null,"URZĄD SKARBOWY W TARNOBRZEGU","1820"]
[null,null,null,null,null,null,null,null,null,null,null,null,null,null,null,null,null,null,null,null,null,null,null,null,null,null,null,"PIERWSZY URZĄD SKARBOWY W TARNOWIE","1223"]
[null,null,null,null,null,null,null,null,null,null,null,null,null,null,null,null,null,null,null,null,null,null,null,null,null,null,null,"DRUGI URZĄD SKARBOWY W TARNOWIE","1224"]
[null,null,null,null,null,null,null,null,null,null,null,null,null,null,null,null,null,null,null,null,null,null,null,null,null,null,null,"URZĄD SKARBOWY W TARNOWSKICH GÓRACH","2430"]
[null,null,null,null,null,null,null,null,null,null,null,null,null,null,null,null,null,null,null,null,null,null,null,null,null,null,null,"URZĄD SKARBOWY W TCZEWIE","2219"]
[null,null,null,null,null,null,null,null,null,null,null,null,null,null,null,null,null,null,null,null,null,null,null,null,null,null,null,"URZĄD SKARBOWY W TOMASZOWIE LUBELSKIM","0618"]
[null,null,null,null,null,null,null,null,null,null,null,null,null,null,null,null,null,null,null,null,null,null,null,null,null,null,null,"URZĄD SKARBOWY W TOMASZOWIE MAZOWIECKIM","1023"]
[null,null,null,null,null,null,null,null,null,null,null,null,null,null,null,null,null,null,null,null,null,null,null,null,null,null,null,"PIERWSZY URZĄD SKARBOWY W TORUNIU","0416"]
[null,null,null,null,null,null,null,null,null,null,null,null,null,null,null,null,null,null,null,null,null,null,null,null,null,null,null,"DRUGI URZĄD SKARBOWY W TORUNIU","0417"]
[null,null,null,null,null,null,null,null,null,null,null,null,null,null,null,null,null,null,null,null,null,null,null,null,null,null,null,"URZĄD SKARBOWY W TRZEBNICY","0221"]
[null,null,null,null,null,null,null,null,null,null,null,null,null,null,null,null,null,null,null,null,null,null,null,null,null,null,null,"URZĄD SKARBOWY W TUCHOLI","0418"]
[null,null,null,null,null,null,null,null,null,null,null,null,null,null,null,null,null,null,null,null,null,null,null,null,null,null,null,"URZĄD SKARBOWY W TURKU","3032"]
[null,null,null,null,null,null,null,null,null,null,null,null,null,null,null,null,null,null,null,null,null,null,null,null,null,null,null,"URZĄD SKARBOWY W TYCHACH","2431"]
[null,null,null,null,null,null,null,null,null,null,null,null,null,null,null,null,null,null,null,null,null,null,null,null,null,null,null,"URZĄD SKARBOWY W USTRZYKACH DOLNYCH","1821"]
[null,null,null,null,null,null,null,null,null,null,null,null,null,null,null,null,null,null,null,null,null,null,null,null,null,null,null,"URZĄD SKARBOWY W WADOWICACH","1225"]
[null,null,null,null,null,null,null,null,null,null,null,null,null,null,null,null,null,null,null,null,null,null,null,null,null,null,null,"URZĄD SKARBOWY W WAŁBRZYCHU","0222"]
[null,null,null,null,null,null,null,null,null,null,null,null,null,null,null,null,null,null,null,null,null,null,null,null,null,null,null,"URZĄD SKARBOWY W WAŁCZU","3220"]
[null,null,null,null,null,null,null,null,null,null,null,null,null,null,null,null,null,null,null,null,null,null,null,null,null,null,null,"URZĄD SKARBOWY WARSZAWA-BEMOWO","1431"]
[null,null,null,null,null,null,null,null,null,null,null,null,null,null,null,null,null,null,null,null,null,null,null,null,null,null,null,"URZĄD SKARBOWY WARSZAWA-BIELANY","1432"]
[null,null,null,null,null,null,null,null,null,null,null,null,null,null,null,null,null,null,null,null,null,null,null,null,null,null,null,"URZĄD SKARBOWY WARSZAWA-MOKOTÓW","1433"]
[null,null,null,null,null,null,null,null,null,null,null,null,null,null,null,null,null,null,null,null,null,null,null,null,null,null,null,"URZĄD SKARBOWY WARSZAWA-PRAGA","1434"]
[null,null,null,null,null,null,null,null,null,null,null,null,null,null,null,null,null,null,null,null,null,null,null,null,null,null,null,"PIERWSZY URZĄD SKARBOWY WARSZAWA-ŚRÓDMIEŚCIE","1435"]
[null,null,null,null,null,null,null,null,null,null,null,null,null,null,null,null,null,null,null,null,null,null,null,null,null,null,null,"DRUGI URZĄD SKARBOWY WARSZAWA-ŚRÓDMIEŚCIE","1436"]
[null,null,null,null,null,null,null,null,null,null,null,null,null,null,null,null,null,null,null,null,null,null,null,null,null,null,null,"TRZECI URZĄD SKARBOWY WARSZAWA-ŚRÓDMIEŚCIE","1449"]
[null,null,null,null,null,null,null,null,null,null,null,null,null,null,null,null,null,null,null,null,null,null,null,null,null,null,null,"URZĄD SKARBOWY WARSZAWA-TARGÓWEK","1437"]
[null,null,null,null,null,null,null,null,null,null,null,null,null,null,null,null,null,null,null,null,null,null,null,null,null,null,null,"URZĄD SKARBOWY WARSZAWA-URSYNÓW","1438"]
[null,null,null,null,null,null,null,null,null,null,null,null,null,null,null,null,null,null,null,null,null,null,null,null,null,null,null,"URZĄD SKARBOWY WARSZAWA-WAWER","1439"]
[null,null,null,null,null,null,null,null,null,null,null,null,null,null,null,null,null,null,null,null,null,null,null,null,null,null,null,"URZĄD SKARBOWY WARSZAWA-WOLA","1440"]
[null,null,null,null,null,null,null,null,null,null,null,null,null,null,null,null,null,null,null,null,null,null,null,null,null,null,null,"PIERWSZY MAZOWIECKI URZĄD SKARBOWY W WARSZAWIE","1471"]
[null,null,null,null,null,null,null,null,null,null,null,null,null,null,null,null,null,null,null,null,null,null,null,null,null,null,null,"DRUGI MAZOWIECKI URZĄD SKARBOWY W WARSZAWIE","1472"]
[null,null,null,null,null,null,null,null,null,null,null,null,null,null,null,null,null,null,null,null,null,null,null,null,null,null,null,"URZĄD SKARBOWY W WĄBRZEŹNIE","0419"]
[null,null,null,null,null,null,null,null,null,null,null,null,null,null,null,null,null,null,null,null,null,null,null,null,null,null,null,"URZĄD SKARBOWY W WĄGROWCU","3033"]
[null,null,null,null,null,null,null,null,null,null,null,null,null,null,null,null,null,null,null,null,null,null,null,null,null,null,null,"URZĄD SKARBOWY W WĘGROWIE","1441"]
[null,null,null,null,null,null,null,null,null,null,null,null,null,null,null,null,null,null,null,null,null,null,null,null,null,null,null,"URZĄD SKARBOWY W WIELICZCE","1226"]
[null,null,null,null,null,null,null,null,null,null,null,null,null,null,null,null,null,null,null,null,null,null,null,null,null,null,null,"URZĄD SKARBOWY W WIELUNIU","1024"]
[null,null,null,null,null,null,null,null,null,null,null,null,null,null,null,null,null,null,null,null,null,null,null,null,null,null,null,"URZĄD SKARBOWY W WIERUSZOWIE","1027"]
[null,null,null,null,null,null,null,null,null,null,null,null,null,null,null,null,null,null,null,null,null,null,null,null,null,null,null,"URZĄD SKARBOWY WE WŁOCŁAWKU","0420"]
[null,null,null,null,null,null,null,null,null,null,null,null,null,null,null,null,null,null,null,null,null,null,null,null,null,null,null,"URZĄD SKARBOWY WE WŁODAWIE","0619"]
[null,null,null,null,null,null,null,null,null,null,null,null,null,null,null,null,null,null,null,null,null,null,null,null,null,null,null,"URZĄD SKARBOWY WE WŁOSZCZOWIE","2615"]
[null,null,null,null,null,null,null,null,null,null,null,null,null,null,null,null,null,null,null,null,null,null,null,null,null,null,null,"URZĄD SKARBOWY W WODZISŁAWIU ŚLĄSKIM","2432"]
[null,null,null,null,null,null,null,null,null,null,null,null,null,null,null,null,null,null,null,null,null,null,null,null,null,null,null,"URZĄD SKARBOWY W WOLSZTYNIE","3034"]
[null,null,null,null,null,null,null,null,null,null,null,null,null,null,null,null,null,null,null,null,null,null,null,null,null,null,null,"URZĄD SKARBOWY W WOŁOMINIE","1442"]
[null,null,null,null,null,null,null,null,null,null,null,null,null,null,null,null,null,null,null,null,null,null,null,null,null,null,null,"URZĄD SKARBOWY W WOŁOWIE","0223"]
[null,null,null,null,null,null,null,null,null,null,null,null,null,null,null,null,null,null,null,null,null,null,null,null,null,null,null,"PIERWSZY URZĄD SKARBOWY WE WROCŁAWIU","0229"]
[null,null,null,null,null,null,null,null,null,null,null,null,null,null,null,null,null,null,null,null,null,null,null,null,null,null,null,"URZĄD SKARBOWY WROCŁAW-FABRYCZNA","0224"]
[null,null,null,null,null,null,null,null,null,null,null,null,null,null,null,null,null,null,null,null,null,null,null,null,null,null,null,"URZĄD SKARBOWY WROCŁAW-KRZYKI","0225"]
[null,null,null,null,null,null,null,null,null,null,null,null,null,null,null,null,null,null,null,null,null,null,null,null,null,null,null,"URZĄD SKARBOWY WROCŁAW-PSIE POLE","0226"]
[null,null,null,null,null,null,null,null,null,null,null,null,null,null,null,null,null,null,null,null,null,null,null,null,null,null,null,"URZĄD SKARBOWY WROCŁAW-STARE MIASTO","0227"]
[null,null,null,null,null,null,null,null,null,null,null,null,null,null,null,null,null,null,null,null,null,null,null,null,null,null,null,"URZĄD SKARBOWY WROCŁAW-ŚRÓDMIEŚCIE","0228"]
[null,null,null,null,null,null,null,null,null,null,null,null,null,null,null,null,null,null,null,null,null,null,null,null,null,null,null,"DOLNOŚLĄSKI URZĄD SKARBOWY WE WROCŁAWIU","0271"]
[null,null,null,null,null,null,null,null,null,null,null,null,null,null,null,null,null,null,null,null,null,null,null,null,null,null,null,"URZĄD SKARBOWY WE WRZEŚNI","3035"]
[null,null,null,null,null,null,null,null,null,null,null,null,null,null,null,null,null,null,null,null,null,null,null,null,null,null,null,"URZĄD SKARBOWY WE WSCHOWIE","0814"]
[null,null,null,null,null,null,null,null,null,null,null,null,null,null,null,null,null,null,null,null,null,null,null,null,null,null,null,"URZĄD SKARBOWY W WYSOKIEM MAZOWIECKIEM","2013"]
[null,null,null,null,null,null,null,null,null,null,null,null,null,null,null,null,null,null,null,null,null,null,null,null,null,null,null,"URZĄD SKARBOWY W WYSZKOWIE","1443"]
[null,null,null,null,null,null,null,null,null,null,null,null,null,null,null,null,null,null,null,null,null,null,null,null,null,null,null,"URZĄD SKARBOWY W ZABRZU","2433"]
[null,null,null,null,null,null,null,null,null,null,null,null,null,null,null,null,null,null,null,null,null,null,null,null,null,null,null,"URZĄD SKARBOWY W ZAKOPANEM","1227"]
[null,null,null,null,null,null,null,null,null,null,null,null,null,null,null,null,null,null,null,null,null,null,null,null,null,null,null,"URZĄD SKARBOWY W ZAMBROWIE","2014"]
[null,null,null,null,null,null,null,null,null,null,null,null,null,null,null,null,null,null,null,null,null,null,null,null,null,null,null,"URZĄD SKARBOWY W ZAMOŚCIU","0620"]
[null,null,null,null,null,null,null,null,null,null,null,null,null,null,null,null,null,null,null,null,null,null,null,null,null,null,null,"URZĄD SKARBOWY W ZAWIERCIU","2434"]
[null,null,null,null,null,null,null,null,null,null,null,null,null,null,null,null,null,null,null,null,null,null,null,null,null,null,null,"URZĄD SKARBOWY W ZĄBKOWICACH ŚLĄSKICH","0230"]
[null,null,null,null,null,null,null,null,null,null,null,null,null,null,null,null,null,null,null,null,null,null,null,null,null,null,null,"URZĄD SKARBOWY W ZDUŃSKIEJ WOLI","1025"]
[null,null,null,null,null,null,null,null,null,null,null,null,null,null,null,null,null,null,null,null,null,null,null,null,null,null,null,"URZĄD SKARBOWY W ZGIERZU","1026"]
[null,null,null,null,null,null,null,null,null,null,null,null,null,null,null,null,null,null,null,null,null,null,null,null,null,null,null,"URZĄD SKARBOWY W ZGORZELCU","0231"]
[null,null,null,null,null,null,null,null,null,null,null,null,null,null,null,null,null,null,null,null,null,null,null,null,null,null,null,"PIERWSZY URZĄD SKARBOWY W ZIELONEJ GÓRZE","0808"]
[null,null,null,null,null,null,null,null,null,null,null,null,null,null,null,null,null,null,null,null,null,null,null,null,null,null,null,"DRUGI URZĄD SKARBOWY W ZIELONEJ GÓRZE","0809"]
[null,null,null,null,null,null,null,null,null,null,null,null,null,null,null,null,null,null,null,null,null,null,null,null,null,null,null,"LUBUSKI URZĄD SKARBOWY W ZIELONEJ GÓRZE","0871"]
[null,null,null,null,null,null,null,null,null,null,null,null,null,null,null,null,null,null,null,null,null,null,null,null,null,null,null,"URZĄD SKARBOWY W ZŁOTORYI","0232"]
[null,null,null,null,null,null,null,null,null,null,null,null,null,null,null,null,null,null,null,null,null,null,null,null,null,null,null,"URZĄD SKARBOWY W ZŁOTOWIE","3036"]
[null,null,null,null,null,null,null,null,null,null,null,null,null,null,null,null,null,null,null,null,null,null,null,null,null,null,null,"URZĄD SKARBOWY W ZWOLENIU","1444"]
[null,null,null,null,null,null,null,null,null,null,null,null,null,null,null,null,null,null,null,null,null,null,null,null,null,null,null,"URZĄD SKARBOWY W ŻAGANIU","0810"]
[null,null,null,null,null,null,null,null,null,null,null,null,null,null,null,null,null,null,null,null,null,null,null,null,null,null,null,"URZĄD SKARBOWY W ŻARACH","0811"]
[null,null,null,null,null,null,null,null,null,null,null,null,null,null,null,null,null,null,null,null,null,null,null,null,null,null,null,"URZĄD SKARBOWY W ŻNINIE","0421"]
[null,null,null,null,null,null,null,null,null,null,null,null,null,null,null,null,null,null,null,null,null,null,null,null,null,null,null,"URZĄD SKARBOWY W ŻORACH","2435"]
[null,null,null,null,null,null,null,null,null,null,null,null,null,null,null,null,null,null,null,null,null,null,null,null,null,null,null,"URZĄD SKARBOWY W ŻUROMINIE","1445"]
[null,null,null,null,null,null,null,null,null,null,null,null,null,null,null,null,null,null,null,null,null,null,null,null,null,null,null,"URZĄD SKARBOWY W ŻYRARDOWIE","1446"]
[null,null,null,null,null,null,null,null,null,null,null,null,null,null,null,null,null,null,null,null,null,null,null,null,null,null,null,"URZĄD SKARBOWY W ŻYWCU","2436"]

{"sheet":"Faktury","index":1,"n_rows":4,"n_cols":5,"rows_kept":4,"cut":false,"hidden":false,"merged":[]}
["Liczba porządkowa dla faktury lub innego dokumentu","Numer faktury lub innego dokumentu potwierdzającego zaopatrzenie w napoje, o których mowa w art. 9² ust. 11 ustawy","Data faktury lub innego dokumentu potwierdzającego zaopatrzenie w napoje, o których mowa w art. 9² ust. 11 ustawy","Identyfikator podatkowy NIP nabywcy (przedsiębiorcy posiadającego zezwolenie na sprzedaż detaliczną napojów alkoholowych), w przypadku gdy obowiązany do zapłaty opłaty zaopatruje przedsiębiorcę posiadającego zezwolenie na sprzedaż detaliczną napojów alkoholowych przeznaczonych do spożycia poza miejscem sprzedaży1)","Identyfikator podatkowy NIP dostawcy (np. producenta lub innego przedsiębiorcy posiadającego zezwolenie, o którym mowa w art. 9 ust. 1 lub 2, albo zezwolenie na wyprzedaż, o którym mowa w art. 9⁵ ust. 4, ustawy z dnia 26 października 1982 r. o wychowaniu w trzeźwości i przeciwdziałaniu alkoholizmowi - Dz. U. z 2019 r. poz. 2277 z późn. zm.), w przypadku gdy obowiązany do zapłaty opłaty posiadający również zezwolenie na sprzedaż detaliczną napojów alkoholowych sam dokonuje sprzedaży detalicznej napojów przeznaczonych do spożycia poza miejscem sprzedaży1)"]
[{"$f":"COUNTA(A4:A1048576)","v":1}]
["LpDokument","NrDokument","DataDokument","NIPNabywcy","NIPDostawcy"]
[1,"a","2023-08-12","1111111111"]

{"sheet":"Opakowania","index":2,"n_rows":4,"n_cols":5,"rows_kept":4,"cut":false,"hidden":false,"merged":[[1,1,1,3]]}
["Liczba porządkowa dla opakowania jednostkowego napoju","Ilość nominalna napoju w opakowaniu w ml","Zawartość alkoholu w %","Ilość opakowań jednostkowych napoju","Liczba litrów 100% alkoholu w tych napojach"]
[{"$f":"COUNTA(A4:A1048576)","v":1},"Sumaryczna liczba litrów 100% alkoholu we wszystkich napojach: ",null,null,{"$f":"SUM(E4:E1048576)","v":1}]
["LpOpakowania","IloscNominalna","ZawartoscAlk","LiczbaOpakowan","LiczbaLitrow"]
[1,1,1.2,1,1]

{"sheet":"CDE_Obrót","index":3,"n_rows":4,"n_cols":12,"rows_kept":4,"cut":false,"hidden":false,"merged":[[0,0,0,2]]}
["Zestawienie łącznych kwot obrotu",null,null,"poz. 9","poz. 10","poz. 11","poz. 14","poz. 15","poz. 16","poz. 19","poz. 20","poz. 21"]
["Lp","Numer faktury\nlub innego dokumentu","Data faktury\nlub innego dokumentu","Liczba litrów 100% alkoholu zawartego w napojach - dla napojów alkoholowych do 4,5% zawartości alkoholu oraz piwa","Kwota opłaty ustalona na podstawie art. 92 ust. 11 i 12 ustawy - dla napojów alkoholowych do 4,5% zawartości  alkoholu oraz piwa","Kwota pomniejszenia opłaty ustalona na podstawie art. 92 ust. 14 ustawy - dla napojów alkoholowych do 4,5% zawartości alkoholu oraz piwa ","Liczba litrów 100% alkoholu zawartego w napojach - dla napojów alkoholowych powyżej 4,5% do 18% zawartości alkoholu,\nz wyjątkiem piwa","Kwota opłaty ustalona na podstawie art. 92 ust. 11 i 12 ustawy - dla napojów alkoholowych powyżej 4,5% do 18% zawartości alkoholu,\nz wyjątkiem piwa","Kwota pomniejszenia opłaty ustalona na podstawie art. 92 ust. 14 ustawy - dla napojów alkoholowych  powyżej 4,5% do 18% zawartości alkoholu,\nz wyjątkiem piwa","Liczba litrów 100% alkoholu zawartego w napojach - dla napojów alkoholowych powyżej 18% zawartości alkoholu","Kwota opłaty ustalona na podstawie art. 92 ust. 11 i 12 ustawy - dla napojów alkoholowych powyżej 18% zawartości alkoholu","Kwota pomniejszenia opłaty ustalona na podstawie art. 92 ust. 14 ustawy - dla napojów alkoholowych powyżej 18% zawartości alkoholu"]
[null,null,"Razem",{"$f":"SUM(D4:D1048576)","v":11.234},{"$f":"SUM(E4:E1048576)","v":1.67},1,11.234,1,1,11.234,1,1]
[1,"1","2023-08-08",11.234,1.67,1,11.234,1,1,11.234,1,1]

{"sheet":"FGH_Wyprzedaż","index":4,"n_rows":4,"n_cols":12,"rows_kept":4,"cut":false,"hidden":false,"merged":[[0,0,0,2]]}
["Zestawienie łącznych kwot wyprzedaży",null,null,"poz. 24","poz. 25","poz. 26","poz. 29","poz. 30","poz. 31","poz. 34","poz. 35","poz. 36"]
["Lp","Numer faktury\nlub innego dokumentu","Data faktury\nlub innego dokumentu","Liczba litrów 100% alkoholu zawartego w napojach dla napojów alkoholowych do 4,5% zawartości alkoholu oraz piwa, objętych zezwoleniem o którym mowa w art. 95 ust. 4 ustawy","Kwota opłaty ustalona na podstawie art. 92 ust. 11 i 12 ustawy dla napojów alkoholowych do 4,5% zawartości alkoholu oraz piwa, objętych zezwoleniem o którym mowa w art. 95 ust. 4  ustawy","Kwota pomniejszenia opłaty ustalona na podstawie art. 92 ust. 14 ustawy dla napojów alkoholowych do 4,5% zawartości alkoholu oraz piwa, objętych zezwoleniem o którym mowa w art. 95 ust. 4 ustawy","Liczba litrów 100% alkoholu zawartego w napojach dla napojów alkoholowych powyżej 4,5% do 18% zawartości alkoholu, z wyjątkiem piwa, objętych zezwoleniem o którym mowa w  art. 95 ust. 4 ustawy","Kwota opłaty ustalona na podstawie art. 92 ust. 11 i 12 ustawy dla napojów alkoholowych powyżej 4,5% do 18% zawartości alkoholu, z wyjątkiem piwa, objętych zezwoleniem o którym  mowa w art. 95 ust. 4 ustawy","Kwota pomniejszenia opłaty ustalona na podstawie art. 92 ust. 14 ustawy dla napojów alkoholowych powyżej 4,5% do 18% zawartości alkoholu, z wyjątkiem piwa, objętych  zezwoleniem o którym mowa  w art. 95 ust. 4 ustawy ","Liczba litrów 100% alkoholu zawartego w napojach dla napojów alkoholowych powyżej 8% zawartości alkoholu, objętych zezwoleniem o którym mowa w art. 95 ust. 4 ustawy","Kwota opłaty ustalona na podstawie art. 92 ust. 11 i 12 ustawy dla napojów alkoholowych powyżej 18% zawartości alkoholu, objętych zezwoleniem o którym mowa w art. 95 ust. 4 ustawy","Kwota pomniejszenia opłaty ustalona na podstawie art. 92 ust. 14 ustawy dla napojów alkoholowych powyżej 18% zawartości alkoholu, objętych zezwoleniem o którym mowa w art.  95 ust. 4 ustawy"]
[null,null,"Razem",{"$f":"SUM(D4:D1048576)","v":11.234},{"$f":"SUM(E4:E1048576)","v":5.24},5.5,11.234,1,1,11.234,1,1]
[1,"1","2023-08-08",11.234,5.24,5.5,11.234,1,1,11.234,1,1]

{"sheet":"A","index":5,"n_rows":2,"n_cols":1,"rows_kept":2,"cut":false,"hidden":true,"merged":[]}
[]
["Licencja dla tego programu wygasła.\n\nPobierz nowy plik z serwisu formularzy."]